Workbook

Sheet variants
A1: Gene | B1: c.DNA | C1: p.change | D1: PP2 SCORE | E1: PP2 PREDICTION | F1: SIFT4G SCORE (VARSOME) | G1: SIFT4G PREDICTION (VARSOME) | H1: MT | I1: Conservation | J1: Conservation conclusion | K1: Database classification | L1: OUR CONCLUSION | M1: DATABASE
A2: HNF1B | B2: c.1006C>A | C2: (p.His336Asn) | D2: 0.425 | E2: benign | F2: 0.441, 0.458, 0.423, 0.46, 0.443 | G2: tolerated | H2: disease causing | I2: ✽ | J2: yes | K2: benign | L2: predicted benign | M2: ClinVar
A3: HNF1B | B3: c.1006C>G | C3: p.His336Asp | D3: 0.182 | E3: B | F3: 0.575 | G3: T | H3: D | I3: ✽ | J3: yes | K3: presumed benign | L3: predicted benign | M3: gnomAD allele count >30
A4: HNF1B | B4: c.1055A>G | C4: (p.Tyr352Cys) | D4: 0.997 | E4: probably damaging | F4: 0, 0.004, 0.002, 0.006, 0.005 | G4: damaging | H4: disease causing | I4: ✽ | J4: yes | K4: likely pathogenic | L4: predicted pathogenic | M4: ClinVar
A5: HNF1B | B5: c.107C>T | C5: p.Ser36Phe | D5: 0.452 | E5: P | F5: 0.134 | G5: T | H5: N | J5: no, but similar | K5: presumed benign | L5: predicted benign | M5: gnomAD allele count >30
A6: HNF1B | B6: c.1108G>A | C6: p.Gly370Ser | D6: 0.119 | E6: B | F6: 1 | G6: T | H6: D | I6: ✽ | J6: yes | K6: presumed benign | L6: predicted benign | M6: gnomAD allele count >30
A7: HNF1B | B7: c.1117G>C | C7: p.Ala373Pro | D7: 0.982 | E7: D | F7: 0.254 | G7: T | H7: D | I7: ✽ | J7: yes | K7: presumed benign | L7: predicted benign | M7: gnomAD allele count >30
A8: HNF1B | B8: c.1120A>C | C8: p.Met374Leu | D8: 0.945 | E8: D | F8: 0.445 | G8: T | H8: D | I8: ✽ | J8: yes | K8: presumed benign | L8: predicted benign | M8: gnomAD allele count >30
A9: HNF1B | B9: c.1329T>G | C9: p.Phe443Leu | D9: can't find | F9: 0.644 | G9: T | H9: D | I9: not found | J9: not found | K9: presumed benign | L9: predicted benign | M9: gnomAD allele count >30
A10: HNF1B | B10: c.1474G>A | C10: p.Gly492Ser | D10: 0.029 | E10: B | F10: 0.122 | G10: T | H10: D | J10: no | K10: presumed benign | L10: predicted benign | M10: gnomAD allele count >30
A11: HNF1B | B11: c.1474G>A | C11: (p.Gly492Ser) | D11: 0.014 | E11: benign | F11: 0.084, 0.131, 0.122 | G11: tolerated | H11: disease causing | J11: no | K11: benign/likely benign | L11: predicted benign | M11: ClinVar
A12: HNF1B | B12: c.1594A>G | C12: p.Met532Val | D12: 0.977 | E12: D | F12: 0.062 | G12: T | H12: D | I12: ✽ | J12: yes | K12: presumed benign | L12: predicted benign | M12: gnomAD allele count >30
A13: HNF1B | B13: c.1640C>T | C13: (p.Ser547Phe) | D13: 0.997 | E13: probably damaging | F13: 0.002 | G13: damaging | H13: disease causing | I13: ✽ | J13: yes | K13: likely pathogenic | L13: predicted pathogenic | M13: ClinVar
A14: HNF1B | B14: c.182T>G | C14: p.Val61Gly | D14: 0.005 | E14: B | F14: 0.32 | G14: T | H14: D | J14: no | K14: presumed benign | L14: predicted benign | M14: gnomAD allele count >30
A15: HNF1B | B15: c.226G>T | C15: p.Gly76Cys | D15: 1 | E15: D | F15: 0.009 | G15: D | H15: D | I15: ✽ | J15: yes | K15: presumed benign | L15: predicted benign | M15: gnomAD allele count >30
A16: HNF1B | B16: c.234G>C | C16: p.Glu78Asp | D16: 0.997 | E16: probably damaging | F16: 0.03, 0.028, 0.029, 0.024 | G16: damaging | H16: disease causing | I16: ✽ | J16: yes | K16: likely pathogenic | L16: predicted pathogenic | M16: LOVD
A17: HNF1B | B17: c.244G>A | C17: p.Asp82Asn | D17: 0.528 | E17: P | F17: 0.015 | G17: D | H17: D | I17: ✽ | J17: yes | K17: presumed benign | L17: predicted benign | M17: gnomAD allele count >30
A18: HNF1B | B18: c.313G>A | C18: p.Glu105Lys | D18: 0.996 | E18: D | F18: 0.6 | G18: T | H18: D | I18: ✽ | J18: yes | K18: presumed benign | L18: predicted benign | M18: gnomAD allele count >30
A19: HNF1B | B19: c.329T>G | C19: p.Val110Gly | D19: 0.972 | E19: probably damaging | F19: 0, 0, 0, 0, 0, 0 | G19: damaging, damaging, damaging, damaging, damaging, damaging | H19: disease causing | I19: ✽ | J19: yes | K19: DM | L19: predicted pathogenic | M19: HGMD
A20: HNF1B | B20: c.374T>C | C20: p.Ile125Thr | D20: 0.998 | E20: probably damaging | F20: 0.002, 0.002, 0.002, 0.003, 0.003, 0.003 | G20: damaging, damaging, damaging, damaging, damaging, damaging | H20: disease causing | I20: ✽ | J20: yes | K20: DM | L20: predicted pathogenic | M20: HGMD
A21: HNF1B | B21: c.406C>G | C21: p.Gln136Glu | D21: 0.996 | E21: probably damaging | F21: 0, 0, 0, 0, 0, 0 | G21: damaging, damaging, damaging, damaging, damaging, damaging | H21: disease causing | I21: ✽ | J21: yes | K21: DM | L21: predicted pathogenic | M21: HGMD
A22: HNF1B | B22: c.412G>A | C22: p.Glu138Lys | D22: 0.997 | E22: probably damaging | F22: 0, 0, 0, 0, 0, 0 | G22: damaging, damaging, damaging, damaging, damaging, damaging | H22: disease causing | I22: ✽ | J22: yes | K22: DM | L22: predicted pathogenic | M22: HGMD
A23: HNF1B | B23: c.436A>G | C23: p.Asn146Asp | D23: 0.999 | E23: probably damaging | F23: 0, 0, 0, 0, 0, 0 | G23: damaging, damaging, damaging, damaging, damaging, damaging | H23: disease causing | I23: ✽ | J23: yes | K23: DM | L23: predicted pathogenic | M23: HGMD
A24: HNF1B | B24: c.441G>T | C24: p.Gln147His | D24: 0.998 | E24: probably damaging | F24: 0, 0, 0, 0, 0, 0 | G24: damaging, damaging, damaging, damaging, damaging, damaging | H24: disease causing | I24: ✽ | J24: yes | K24: DM | L24: predicted pathogenic | M24: HGMD
A25: HNF1B | B25: c.443C>G | C25: p.Ser148Trp | D25: 1 | E25: probably damaging | F25: 0, 0, 0, 0, 0, 0 | G25: damaging, damaging, damaging, damaging, damaging, damaging | H25: disease causing | I25: ✽ | J25: yes | K25: DM | L25: predicted pathogenic | M25: HGMD
A26: HNF1B | B26: c.443C>T | C26: p.Ser148Leu | D26: 0.999 | E26: probably damaging | F26: 0, 0, 0, 0, 0, 0 | G26: damaging, damaging, damaging, damaging, damaging, damaging | H26: disease causing | I26: ✽ | J26: yes | K26: DM | L26: predicted pathogenic | M26: HGMD
A27: HNF1B | B27: c.451T>C | C27: p.Ser151Pro | D27: 0.998 | E27: probably damaging | F27: 0, 0, 0, 0, 0, 0 | G27: damaging, damaging, damaging, damaging, damaging, damaging | H27: disease causing | I27: ✽ | J27: yes | K27: DM | L27: predicted pathogenic | M27: HGMD
A28: HNF1B | B28: c.452C>G | C28: p.Ser151Cys | D28: 0.998 | E28: probably damaging | F28: 0, 0, 0, 0, 0, 0 | G28: damaging, damaging, damaging, damaging, damaging, damaging | H28: disease causing | I28: ✽ | J28: yes | K28: DM | L28: predicted pathogenic | M28: HGMD
A29: HNF1B | B29: c.455A>G | C29: p.Gln152Arg | D29: 0.993 | E29: probably damaging | F29: 0, 0, 0, 0, 0, 0 | G29: damaging, damaging, damaging, damaging, damaging, damaging | H29: disease causing | I29: ✽ | J29: yes | K29: DM | L29: predicted pathogenic | M29: HGMD
A30: HNF1B | B30: c.457C>A | C30: p.His153Asn | D30: 1 | E30: probably damaging | F30: 0 | G30: damaging | H30: disease causing | I30: ✽ | J30: yes | K30: pathogenic | L30: predicted pathogenic | M30: LOVD
A31: HNF1B | B31: c.460C>T | C31: p.Leu154Phe | D31: 0.999 | E31: probably damaging | F31: 0, 0, 0, 0, 0, 0 | G31: damaging, damaging, damaging, damaging, damaging, damaging | H31: disease causing | I31: ✽ | J31: yes | K31: DM | L31: predicted pathogenic | M31: HGMD
A32: HNF1B | B32: c.466A>G | C32: p.Lys156Glu | D32: 1 | E32: probably damaging | F32: 0.002, 0.003 | G32: damaging | H32: disease causing | I32: ✽ | J32: yes | K32: pathogenic | L32: predicted pathogenic | M32: LOVD
A33: HNF1B | B33: c.473C>A | C33: p.Thr158Asn | D33: 1 | E33: probably damaging | F33: 0, 0, 0, 0, 0, 0 | G33: damaging, damaging, damaging, damaging, damaging, damaging | H33: disease causing | I33: ✽ | J33: yes | K33: DM | L33: predicted pathogenic | M33: HGMD
A34: HNF1B | B34: c.476C>T | C34: p.Pro159Leu | D34: 1 | E34: probably damaging | F34: 0.001, 0.001, 0.001, 0.001, 0.002, 0.002 | G34: damaging, damaging, damaging, damaging, damaging, damaging | H34: disease causing | I34: ✽ | J34: yes | K34: DM | L34: predicted pathogenic | M34: HGMD
A35: HNF1B | B35: c.478A>G | C35: p.Met160Val | D35: 0.999 | E35: probably damaging | F35: 0, 0, 0, 0, 0, 0 | G35: damaging, damaging, damaging, damaging, damaging, damaging | H35: disease causing | I35: ✽ | J35: yes | K35: DM | L35: predicted pathogenic | M35: HGMD
A36: HNF1B | B36: c.493C>T | C36: p.Arg165Cys | D36: 1 | E36: probably damaging | F36: 0 | G36: damaging | H36: disease causing | I36: ✽ | J36: yes | K36: pathogenic | L36: predicted pathogenic | M36: LOVD
A37: HNF1B | B37: c.494G>C | C37: p.Arg165Pro | D37: 1 | E37: probably damaging | F37: 0 | G37: damaging | H37: disease causing | I37: ✽ | J37: yes | K37: likely pathogenic, pathogenic | L37: predicted pathogenic | M37: LOVD
A38: HNF1B | B38: c.505T>C | C38: p.Tyr169His | D38: 1 | E38: probably damaging | F38: 0, 0, 0, 0, 0, 0 | G38: damaging, damaging, damaging, damaging, damaging, damaging | H38: disease causing | I38: ✽ | J38: yes | K38: pathogenic | L38: predicted pathogenic | M38: LOVD
A39: HNF1B | B39: c.511T>C | C39: p.Trp171Arg | D39: 1 | E39: probably damaging | F39: 0, 0, 0, 0, 0, 0 | G39: damaging, damaging, damaging, damaging, damaging, damaging | H39: disease causing | I39: ✽ | J39: yes | K39: likely pathogenic, pathogenic | L39: predicted pathogenic | M39: LOVD
A40: HNF1B | B40: c.513G>C | C40: p.Trp171Cys | D40: 1 | E40: probably damaging | F40: 0 | G40: damaging | H40: disease causing | I40: ✽ | J40: yes | K40: likely pathogenic | L40: predicted pathogenic | M40: LOVD
A41: HNF1B | B41: c.548T>C | C41: p.Phe183Ser | D41: 0.635 | E41: possibly damaging | F41: 0.015, 0.013, 0.021 | G41: damaging, damaging, damaging | H41: disease causing | I41: ✽ | J41: yes | K41: pathogenic | L41: predicted benign | M41: LOVD
A42: HNF1B | B42: c.684C>G | C42: p.Asn228Lys | D42: 0.001 | E42: B | F42: 0.509 | G42: T | H42: D | J42: no | K42: presumed benign | L42: predicted benign | M42: gnomAD allele count >30
A43: HNF1B | B43: c.684C>G | C43: (p.Asn228Lys) | D43: 0 | E43: benign | F43: 0.502, 0.517, 0.621, 0.547, 0.371, 0.509 | G43: tolerated | H43: disease causing | I43: . | J43: no | K43: benign/likely benign | L43: predicted benign | M43: ClinVar
A44: HNF1B | B44: c.698G>A | C44: p.Arg233His | D44: 0.999 | E44: probably damaging | F44: 0.003, 0.006, 0.004 | G44: damaging | H44: disease causing | I44: ✽ | J44: yes | K44: likely pathogenic | L44: predicted pathogenic | M44: LOVD
A45: HNF1B | B45: c.703C>T | C45: p.Arg235Trp | D45: 1 | E45: probably damaging | F45: 0.001, 0 | G45: damaging | H45: disease causing | I45: ✽ | J45: yes | K45: likely pathogenic | L45: predicted pathogenic | M45: LOVD
A46: HNF1B | B46: c.712T>C | C46: (p.Trp238Arg) | D46: 0.982 | E46: probably damaging | F46: 0.006, 0.005, 0.006, 0.006, 0.007, 0.006 | G46: damaging, damaging, damaging, damaging, damaging, damaging | H46: disease causing | I46: ✽ | J46: yes | K46: likely pathogenic | L46: predicted pathogenic | M46: ClinVar
A47: HNF1B | B47: c.715G>C | C47: (p.Gly239Arg) | D47: 0.966 | E47: probably damaging | F47: 0.002, 0.002, 0.001, 0.001, 0.002, 0.001 | G47: damaging, damaging, damaging, damaging, damaging, damaging | H47: disease causing | I47: ✽ | J47: yes | K47: pathogenic | L47: predicted pathogenic | M47: ClinVar
A48: HNF1B | B48: c.728A>C | C48: (p.Gln243Pro) | D48: 0.995 | E48: probably damaging | F48: 0.028, 0.026, 0.025, 0.015, 0.025, 0.004 | G48: damaging, damaging, damaging, damaging, damaging, damaging | H48: disease causing | I48: ✽ | J48: yes | K48: likely pathogenic | L48: predicted pathogenic | M48: ClinVar
A49: HNF1B | B49: c.73G>T | C49: p.Val25Leu | D49: 0.224 | E49: B | F49: 0.328 | G49: T | H49: D | J49: no | K49: presumed benign | L49: predicted benign | M49: gnomAD allele count >30
A50: HNF1B | B50: c.755G>C | C50: (p.Arg252Pro) | D50: 0.996 | E50: probably damaging | F50: 0.008, 0.007, 0.007, 0.007, 0.009 | G50: damaging, damaging, damaging, damaging, damaging | H50: disease causing | I50: ✽ | J50: yes | K50: likely pathogenic | L50: predicted pathogenic | M50: ClinVar
A51: HNF1B | B51: c.766C>T | C51: (p.Pro256Ser) | D51: 0.734 | E51: possibly damaging | F51: 0.098 | G51: tolerated | H51: disease causing | I51: ✽ | J51: yes | K51: likely pathogenic | L51: predicted benign | M51: ClinVar
A52: HNF1B | B52: c.781A>G | C52: p.Arg261Gly | D52: 0.99 | E52: probably damaging | F52: 0.002, 0.003, 0.004, 0.005 | G52: damaging | H52: disease causing | I52: ✽ | J52: yes | K52: likely pathogenic | L52: predicted pathogenic | M52: LOVD
A53: HNF1B | B53: c.791T>C | C53: (p.Leu264Ser) | D53: 0.993 | E53: probably damaging | F53: 0.001, 0.001, 0.001, 0.001, 0.001, 0.001 | G53: damaging, damaging, damaging, damaging, damaging, damaging | H53: disease causing | I53: ✽ | J53: yes | K53: likely pathogenic | L53: predicted pathogenic | M53: ClinVar
A54: HNF1B | B54: c.818G>A | C54: (p.Cys273Tyr) | D54: 0.987 | E54: probably damaging | F54: 0.002, 0.002, 0.002, 0, 0.002 | G54: damaging, damaging, damaging, damaging, damaging | H54: disease causing | I54: ✽ | J54: yes | K54: likely pathogenic | L54: predicted pathogenic | M54: ClinVar
A55: HNF1B | B55: c.818G>C | C55: (p.Cys273Ser) | D55: 0.997 | E55: probably damaging | F55: 0.003, 0.003, 0.003, 0.005, 0.004 | G55: damaging, damaging, damaging, damaging, damaging | H55: disease causing | I55: ✽ | J55: yes | K55: likely pathogenic | L55: predicted pathogenic | M55: ClinVar
A56: HNF1B | B56: c.826C>G | C56: (p.Arg276Gly) | D56: 0.994 | E56: probably damaging | F56: 0.003, 0.003, 0.003, 0.004, 0.004 | G56: damaging, damaging, damaging, damaging, damaging | H56: disease causing | I56: ✽ | J56: yes | K56: pathogenic | L56: predicted pathogenic | M56: ClinVar
A57: HNF1B | B57: c.827G>A | C57: (p.Arg276Gln) | D57: 0.773 | E57: possibly damaging | F57: 0.082 | G57: tolerated | H57: disease causing | I57: ✽ | J57: yes | K57: pathogenic | L57: predicted benign | M57: ClinVar
A58: HNF1B | B58: c.853G>A | C58: (p.Gly285Ser) | D58: 0.983 | E58: probably damaging | F58: 0.02, 0.018, 0.019, 0.017, 0.028 | G58: damaging, damaging, damaging, damaging, damaging | H58: disease causing | I58: ✽ | J58: yes | K58: likely pathogenic | L58: predicted pathogenic | M58: ClinVar
A59: HNF1B | B59: c.854G>A | C59: (p.Gly285Asp) | D59: 0.988 | E59: probably damaging | F59: 0.023 | G59: damaging | H59: disease causing | I59: ✽ | J59: yes | K59: pathogenic | L59: predicted pathogenic | M59: ClinVar
A60: HNF1B | B60: c.856C>G | C60: (p.Leu286Val) | D60: 0.997 | E60: probably damaging | F60: 0.005, 0.005, 0.005, 0.005, 0.006 | G60: damaging | H60: disease causing | I60: ✽ | J60: yes | K60: likely pathogenic | L60: predicted pathogenic | M60: ClinVar
A61: HNF1B | B61: c.865A>G | C61: (p.Asn289Asp) | D61: 0.973 | E61: probably damaging | F61: 0.016, 0.021, 0.013, 0.017 | G61: damaging | H61: disease causing | I61: ✽ | J61: yes | K61: pathogenic/likely pathogenic | L61: predicted pathogenic | M61: ClinVar
A62: HNF1B | B62: c.883C>T | C62: (p.Arg295Cys) | D62: 1 | E62: probably damaging | F62: 0.001, 0 | G62: damaging | H62: disease causing | I62: ✽ | J62: yes | K62: pathogenic/likely pathogenic | L62: predicted pathogenic | M62: ClinVar
A63: HNF1B | B63: c.884G>A | C63: p.Arg295His | D63: 1 | E63: probably damaging | F63: 0.002, 0.005, 0.003 | G63: damaging | H63: disease causing | I63: ✽ | J63: yes | K63: pathogenic | L63: predicted pathogenic | M63: LOVD
A64: HNF1B | B64: c.886G>T | C64: (p.Val296Phe) | D64: 0.951 | E64: possibly damaging | F64: 0.002, 0.001 | G64: damaging | H64: disease causing | I64: ✽ | J64: yes | K64: likely pathogenic | L64: predicted pathogenic | M64: ClinVar
A65: HNF1B | B65: c.910A>G | C65: (p.Arg304Gly) | D65: 1 | E65: probably damaging | F65: 0.007, 0.008 | G65: damaging | H65: disease causing | I65: ✽ | J65: yes | K65: likely pathogenic/likely risk allele | L65: predicted pathogenic | M65: ClinVar
A66: HNF1B | B66: c.940G>A | C66: (p.Ala314Thr) | D66: 0.997 | E66: probably damaging | F66: 0.007, 0.008, 0.011, 0.012 | G66: damaging | H66: disease causing | I66: ✽ | J66: yes | K66: likely pathogenic | L66: predicted pathogenic | M66: ClinVar
A67: HNF1B | B67: c.983C>T | C67: (p.Pro328Leu) | D67: 0 | E67: benign | F67: 0.132, 0.135, 0.143, 0.151, 0.138 | G67: tolerated | H67: disease causing | J67: no | K67: likely benign | L67: predicted benign | M67: ClinVar
A68: SALL1 | B68: c.1135G>T | C68: (p.Ala379Ser) | D68: 0.799 | E68: possibly damaging | F68: 0.06, 0.054, 0.057 | G68: tolerated | H68: disease causing | I68: ✽ | J68: Yes | K68: likely benign | L68: predicted benign | M68: ClinVar
A69: SALL1 | B69: c.1199C>T | C69: (p.Ser400Leu) | D69: 0.031 | E69: benign | F69: 0.084, 0.129, 0.051 | G69: tolerated | H69: disease causing | J69: No | K69: likely benign | L69: predicted benign | M69: ClinVar
A70: SALL1 | B70: c.1322C>A | C70: p.Thr441Asn | D70: 0.001 | E70: B | F70: 0.21 | G70: T | H70: D | J70: No | K70: presumed benign | L70: predicted benign | M70: gnomAD allele count >30
A71: SALL1 | B71: c.1327G>A | C71: (p.Asp443Asn) | D71: 0.956 | E71: possibly damaging | F71: 0.006, 0.007, 0.005 | G71: damaging | H71: disease causing | I71: ✽ | J71: Yes | K71: benign | L71: predicted pathogenic | M71: ClinVar
A72: SALL1 | B72: c.1513C>A | C72: p.His505Asn | D72: 0.997 | E72: probably damaging | F72: 0.098, 0.137, 0.101 | G72: tolerated | H72: disease causing | I72: ✽ | J72: Yes | K72: pathogenic | L72: predicted benign | M72: LOVD
A73: SALL1 | B73: c.1565C>T | C73: p.Thr522Met | D73: 0.997 | E73: D | F73: 0.001 | G73: D | H73: D | I73: ✽ | J73: Yes | K73: presumed benign | L73: predicted benign | M73: gnomAD allele count >30
A74: SALL1 | B74: c.1565C>T | C74: (p.Thr522Met) | D74: 1 | E74: probaby damaging | F74: 0.001 | G74: damaging | H74: disease causing | I74: ✽ | J74: Yes | K74: benign/likely benign | L74: predicted pathogenic | M74: ClinVar
A75: SALL1 | B75: c.1666G>A | C75: (p.Gly556Ser) | D75: 1 | E75: probaby damaging | F75: 0.036, 0.021, 0.005 | G75: damaging | H75: disease causing | I75: ✽ | J75: Yes | K75: likely pathogenic | L75: predicted pathogenic | M75: ClinVar
A76: SALL1 | B76: c.1878G>C | C76: p.Glu626Asp | D76: 0 | E76: B | F76: 0.268 | G76: T | H76: D | I76: ✽ | J76: Yes | K76: presumed benign | L76: predicted benign | M76: gnomAD allele count >30
A77: SALL1 | B77: c.1878G>C | C77: (p.Glu626Asp) | D77: 0 | E77: benign | F77: 0.548, 0.577, 0.602 | G77: tolerated | H77: polymorphism | I77: ✽ | J77: Yes | K77: benign/likely benign | L77: predicted benign | M77: ClinVar
A78: SALL1 | B78: c.1903C>T | C78: p.Pro635Ser | D78: 0 | E78: B | F78: 0.649 | G78: T | H78: N | J78: No | K78: presumed benign | L78: predicted benign | M78: gnomAD allele count >30
A79: SALL1 | B79: c.1903C>T | C79: (p.Pro635Ser) | D79: 0 | E79: benign | F79: 0.516, 0.585, 0.528 | G79: tolerated | H79: polymorphism | J79: No | K79: benign/likely benign | L79: predicted benign | M79: ClinVar
A80: SALL1 | B80: c.1904C>T | C80: p.Pro635Leu | D80: 0 | E80: B | F80: 0.127 | G80: T | H80: D | J80: No | K80: presumed benign | L80: predicted benign | M80: gnomAD allele count >30
A81: SALL1 | B81: c.1904C>T | C81: (p.Pro635Leu) | D81: 0 | E81: benign | F81: 0.036, 0.033, 0.037 | G81: tolerated | H81: polymorphism | J81: No | K81: benign/likely benign | L81: predicted benign | M81: ClinVar
A82: SALL1 | B82: c.1966A>G | C82: p.Thr656Ala | D82: 0 | E82: benign | F82: 0.102, 0.089, 0.12 | G82: tolerated | H82: polymorphism | J82: No | K82: likely benign | L82: predicted benign | M82: LOVD
A83: SALL1 | B83: c.2008T>C | C83: p.Phe670Leu | D83: 0.314 | E83: B | F83: 0.233 | G83: T | H83: D | I83: ✽ | J83: Yes | K83: presumed benign | L83: predicted benign | M83: gnomAD allele count >30
A84: SALL1 | B84: c.2008T>C | C84: (p.Phe670Leu) | D84: 0.894 | E84: possibly damaging | F84: 0.081, 0.086, 0.091 | G84: tolerated | H84: disease causing | I84: ✽ | J84: Yes | K84: benign | L84: predicted benign | M84: ClinVar
A85: SALL1 | B85: c.2105C>T | C85: (p.Ala702Val) | D85: 0.354 | E85: benign | F85: 0.464, 0.525, 0.532 | G85: tolerated | H85: disease causing | I85: ✽ | J85: Yes | K85: likely benign | L85: predicted benign | M85: ClinVar
A86: SALL1 | B86: c.220G>A | C86: p.Val74Ile | D86: 0.007 | E86: B | F86: 0.093 | G86: T | H86: D | I86: ✽ | J86: Yes | K86: presumed benign | L86: predicted benign | M86: gnomAD allele count >30
A87: SALL1 | B87: c.235G>C | C87: p.Ala79Pro | D87: 0.001 | E87: B | F87: 0.146 | G87: T | H87: N | I87: ✽ | J87: Yes | K87: presumed benign | L87: predicted benign | M87: gnomAD allele count >30
A88: SALL1 | B88: c.2870C>G | C88: (p.Ala957Gly) | D88: 0.19 | E88: benign | F88: 0.373, 0.378, 0.243 | G88: tolerated | H88: disease causing | I88: ✽ | J88: Yes | K88: likely benign | L88: predicted benign | M88: ClinVar
A89: SALL1 | B89: c.292A>G | C89: p.Met98Val | D89: 0 | E89: benign | F89: 0.571, 0.012 | G89: tolerated, damaging | H89: disease causing | I89: ✽ | J89: Yes | K89: benign | L89: predicted benign | M89: LOVD
A90: SALL1 | B90: c.3242T>C | C90: (p.Leu1081Ser) | D90: 0.988 | E90: probaby damaging | F90: 0.119, 0.084 | G90: tolerated | H90: disease causing | I90: ✽ | J90: Yes | K90: likely benign | L90: predicted benign | M90: ClinVar
A91: SALL1 | B91: c.3310C>G | C91: p.Pro1104Ala | D91: 0.018 | E91: B | F91: 0.328 | G91: T | H91: D | I91: ✽ | J91: Yes | K91: presumed benign | L91: predicted benign | M91: gnomAD allele count >30
A92: SALL1 | B92: c.3310C>G | C92: (p.Pro1104Ala) | D92: 0.026 | E92: benign | F92: 0.073, 0.071, 0.07 | G92: tolerated | H92: disease causing | I92: ✽ | J92: Yes | K92: benign/likely benign | L92: predicted benign | M92: ClinVar
A93: SALL1 | B93: c.3322G>A | C93: (p.Val1108Ile) | D93: 0.001 | E93: benign | F93: 0.231, 0.146, 0.149 | G93: tolerated | H93: polymorphism | J93: No | K93: likely benign | L93: predicted benign | M93: ClinVar
A94: SALL1 | B94: c.3322G>C | C94: p.Val1108Leu | D94: 0.001 | E94: B | F94: 0.464 | G94: T | H94: D | J94: No | K94: presumed benign | L94: predicted benign | M94: gnomAD allele count >30
A95: SALL1 | B95: c.3322G>C | C95: (p.Val1108Leu) | D95: 0 | E95: benign | F95: 0.236, 0.23, 0.323 | G95: tolerated | H95: polymorphism | J95: No | K95: benign/likely benign | L95: predicted benign | M95: ClinVar
A96: SALL1 | B96: c.3326C>T | C96: (p.Pro1109Leu) | D96: 0.023 | E96: benign | F96: 0.006, 0.004 | G96: damaging | H96: disease causing | J96: No | K96: likely pathogenic | L96: predicted benign | M96: ClinVar
A97: SALL1 | B97: c.3380C>T | C97: (p.Pro1127Leu) | D97: 0.165 | E97: benign | F97: 0.057, 0.056, 0.067 | G97: tolerated | H97: disease causing | I97: ✽ | J97: Yes | K97: benign/likely benign | L97: predicted benign | M97: ClinVar
A98: SALL1 | B98: c.3665C>T | C98: (p.Ala1222Val) | D98: 0.976 | E98: probaby damaging | F98: 0.325, 0.339, 0.341 | G98: tolerated | H98: disease causing | I98: ✽ | J98: Yes | K98: benign/likely benign | L98: predicted benign | M98: ClinVar
A99: SALL1 | B99: c.3794G>A | C99: p.Gly1265Glu | D99: 0.873 | E99: P | F99: 0.096 | G99: T | H99: D | I99: ✽ | J99: Yes | K99: presumed benign | L99: predicted benign | M99: gnomAD allele count >30
A100: SALL1 | B100: c.3794G>A | C100: (p.Gly1265Glu) | D100: 0.998 | E100: probaby damaging | F100: 0.015 | G100: damaging | H100: disease causing | I100: ✽ | J100: Yes | K100: benign/likely benign | L100: predicted pathogenic | M100: ClinVar
A101: SALL1 | B101: c.379G>C | C101: p.Val127Leu | D101: 0.001 | E101: B | F101: 0.497 | G101: T | H101: D | I101: ✽ | J101: Yes | K101: presumed benign | L101: predicted benign | M101: gnomAD allele count >30
A102: SALL1 | B102: c.3823G>A | C102: p.Val1275Ile | D102: 0 | E102: B | F102: 0.482 | G102: T | H102: P | J102: No | K102: presumed benign | L102: predicted benign | M102: gnomAD allele count >30
A103: SALL1 | B103: c.3823G>A | C103: (p.Val1275Ile) | D103: 0 | E103: benign | F103: 0.841, 0.902 | G103: tolerated | H103: polymorphism | J103: No | K103: benign | L103: predicted benign | M103: ClinVar
A104: SALL1 | B104: c.3872A>G | C104: p.Asn1291Ser | D104: 0.001 | E104: B | F104: 0.697 | G104: T | H104: D | J104: No | K104: presumed benign | L104: predicted benign | M104: gnomAD allele count >30
A105: SALL1 | B105: c.3872A>G | C105: (p.Asn1291Ser) | D105: 0 | E105: benign | F105: 1 | G105: tolerated | H105: polymorphism | J105: No | K105: benign/likely benign | L105: predicted benign | M105: ClinVar
A106: SALL1 | B106: c.389C>T | C106: p.Pro130Leu | D106: 0.001 | E106: B | F106: 0.021 | G106: D | H106: D | J106: No | K106: presumed benign | L106: predicted benign | M106: gnomAD allele count >30
A107: SALL1 | B107: c.3963C>G | C107: (p.Ile1321Met) | D107: 0.997 | E107: probaby damaging | F107: 0.005, 0.011 | G107: damaging | H107: disease causing | I107: ✽ | J107: Yes | K107: benign | L107: predicted pathogenic | M107: ClinVar
A108: SALL1 | B108: c.472A>G | C108: p.Ser158Gly | D108: 0.007 | E108: B | F108: 0.445 | G108: T | H108: N | J108: No | K108: presumed benign | L108: predicted benign | M108: gnomAD allele count >30
A109: SALL1 | B109: c.475A>G | C109: p.Ser159Gly | D109: 0.015 | E109: B | F109: 0.449 | G109: T | H109: N | J109: No | K109: presumed benign | L109: predicted benign | M109: gnomAD allele count >30
A110: SALL1 | B110: c.477C>A | C110: p.Ser159Arg | D110: 0.162 | E110: B | F110: 0.405 | G110: T | H110: N | J110: No | K110: presumed benign | L110: predicted benign | M110: gnomAD allele count >30
A111: SALL1 | B111: c.478G>A | C111: p.Gly160Ser | D111: 0 | E111: B | F111: 0.746 | G111: T | H111: N | J111: No | K111: presumed benign | L111: predicted benign | M111: gnomAD allele count >30
A112: SALL1 | B112: c.499A>G | C112: p.Thr167Ala | D112: 0 | E112: B | F112: 0.733 | G112: T | H112: D | J112: No | K112: presumed benign | L112: predicted benign | M112: gnomAD allele count >30
A113: SALL1 | B113: c.548C>G | C113: p.Thr183Arg | D113: 0.664 | E113: possibly damaging | F113: 0.015, 0.07 | G113: damaging, tolerated | H113: disease causing | I113: ✽ | J113: Yes | K113: DM | L113: predicted benign | M113: HGMD
A114: SALL1 | B114: c.676G>A | C114: p.Val226Ile | D114: 0.001 | E114: B | F114: 1 | G114: T | H114: D | J114: No | K114: presumed benign | L114: predicted benign | M114: gnomAD allele count >30
A115: SALL1 | B115: c.809C>T | C115: p.Pro270Leu | D115: 0.01 | E115: B | F115: 0.322 | G115: T | H115: D | I115: ✽ | J115: Yes | K115: presumed benign | L115: predicted benign | M115: gnomAD allele count >30
A116: EYA1 | B116: c.1051G>T | C116: (p.Asp351Tyr) | D116: 0.994 | E116: probably damaging | F116: 0 | G116: damaging | H116: disease causing | I116: ✽ | J116: Yes | K116: likely pathogenic | L116: predicted pathogenic | M116: ClinVar
A117: EYA1 | B117: c.107C>T | C117: p.Thr36Ile | D117: 0.019 | E117: B | F117: 0.049 | G117: D | H117: D | I117: ✽ | J117: Yes | K117: presumed benign | L117: predicted benign | M117: gnomAD allele count >30
A118: EYA1 | B118: c.1087G>A | C118: (p.Glu363Lys) | D118: 0.993 | E118: probably damaging | F118: 0.001, 0 | G118: damaging | H118: disease causing | I118: ✽ | J118: Yes | K118: pathogenic | L118: predicted pathogenic | M118: ClinVar
A119: EYA1 | B119: c.1088A>T | C119: p.Glu363Val | D119: 0.991 | E119: probably damaging | F119: 0 | G119: damaging | H119: disease causing | I119: ✽ | J119: Yes | K119: pathogenic | L119: predicted pathogenic | M119: LOVD
A120: EYA1 | B120: c.121G>C | C120: p.Glu41Gln | D120: 0.956 | E120: D | F120: 0.536 | G120: T | H120: D | I120: ✽ | J120: Yes | K120: presumed benign | L120: predicted benign | M120: gnomAD allele count >30
A121: EYA1 | B121: c.1276G>A | C121: p.Gly426Ser | D121: 0.418 | E121: B | F121: 0.008 | G121: D | H121: A | I121: ✽ | J121: Yes | K121: presumed benign | L121: predicted benign | M121: gnomAD allele count >30
A122: EYA1 | B122: c.1309C>T | C122: (p.Arg437Cys) | D122: 1 | E122: probably damaging | F122: 0 | G122: damaging | H122: disease causing | I122: ✽ | J122: Yes | K122: likely pathogenic | L122: predicted pathogenic | M122: ClinVar
A123: EYA1 | B123: c.1319G>A | C123: (p.Arg440Gln) | D123: 1 | E123: probably damaging | F123: 0.006, 0.007, 0.005, 0.004 | G123: damaging | H123: disease causing | I123: ✽ | J123: Yes | K123: pathogenic/likely pathogenic | L123: predicted pathogenic | M123: ClinVar
A124: EYA1 | B124: c.1448T>C | C124: (p.Leu483Pro) | D124: 1 | E124: probably damaging | F124: 0.001, 0.002, 0.003 | G124: damaging | H124: disease causing | I124: ✽ | J124: Yes | K124: likely pathogenic | L124: predicted pathogenic | M124: ClinVar
A125: EYA1 | B125: c.1459T>C | C125: (p.Ser487Pro) | D125: 0.214 | E125: benign | F125: 0.093, 0.122, 0.115, 0.102, 0.1, 0.091 | G125: tolerated | H125: disease causing | J125: No | K125: pathogenic | L125: predicted benign | M125: ClinVar
A126: EYA1 | B126: c.1460C>T | C126: p.Ser487Leu | D126: 0.038 | E126: B | F126: 0.276 | G126: T | H126: D | J126: No | K126: presumed benign | L126: predicted benign | M126: gnomAD allele count >30
A127: EYA1 | B127: c.1475G>C | C127: p.Arg492Pro | D127: 1 | E127: probably damaging | F127: 0, 0.013, 0.007, 0.006, 0.011, 0.01 | G127: damaging | H127: disease causing | I127: ✽ | J127: Yes | K127: pathogenic | L127: predicted pathogenic | M127: LOVD
A128: EYA1 | B128: c.1483T>A | C128: (p.Cys495Ser) | D128: 1 | E128: probably damaging | F128: 0.079, 0.095, 0.099, 0.084, 0.077, 0.078 | G128: tolerated | H128: disease causing | I128: ✽ | J128: Yes | K128: likely pathogenic | L128: predicted benign | M128: ClinVar
A129: EYA1 | B129: c.1505C>G | C129: (p.Thr502Ser) | D129: 0.989 | E129: probably damaging | F129: 0.148, 0.209, 0.195, 0.204, 0.133, 0.0134 | G129: tolerated | H129: disease causing | I129: ✽ | J129: Yes | K129: likely benign | L129: predicted benign | M129: ClinVar
A130: EYA1 | B130: c.1514T>G | C130: p.Leu505Arg | D130: 0.998 | E130: probably damaging | F130: 0 | G130: damaging | H130: disease causing | I130: ✽ | J130: Yes | K130: pathogenic | L130: predicted pathogenic | M130: LOVD
A131: EYA1 | B131: c.1534G>T | C131: p.Val512Phe | D131: 0.999 | E131: probably damaging | F131: 0.001 | G131: damaging | H131: disease causing | I131: ✽ | J131: Yes | K131: pathogenic | L131: predicted pathogenic | M131: LOVD
A132: EYA1 | B132: c.1537C>A | C132: (p.Leu513Met) | D132: 0.986 | E132: probably damaging | F132: 0.046, 0.035, 0.054, 0.04, 0.037, 0.029 | G132: tolerated, damaging | H132: disease causing | I132: ✽ | J132: Yes | K132: likely pathogenic | L132: predicted benign | M132: ClinVar
A133: EYA1 | B133: c.1538T>C | C133: p.Leu513Pro | D133: 1 | E133: probably damaging | F133: 0 | G133: damaging | H133: disease causing | I133: ✽ | J133: Yes | K133: pathogenic | L133: predicted pathogenic | M133: LOVD
A134: EYA1 | B134: c.1541T>C | C134: p.Leu514Pro | D134: 1 | E134: probably damaging | F134: 0 | G134: damaging | H134: disease causing | I134: ✽ | J134: Yes | K134: pathogenic | L134: predicted pathogenic | M134: LOVD
A135: EYA1 | B135: c.1579T>A | C135: (p.Tyr527Asn) | D135: 1 | E135: probably damaging | F135: 0 | G135: damaging | H135: disease causing | I135: ✽ | J135: Yes | K135: likely pathogenic | L135: predicted pathogenic | M135: ClinVar
A136: EYA1 | B136: c.1580A>G | C136: p.Tyr527Cys | D136: 1 | E136: probably damaging | F136: 0 | G136: damaging | H136: disease causing | I136: ✽ | J136: Yes | K136: pathogenic | L136: predicted pathogenic | M136: LOVD
A137: EYA1 | B137: c.1597G>A | C137: p.Gly533Arg | D137: 0.999 | E137: probably damaging | F137: 0 | G137: damaging | H137: disease causing | I137: ✽ | J137: Yes | K137: pathogenic | L137: predicted pathogenic | M137: LOVD
A138: EYA1 | B138: c.1597G>C | C138: (p.Gly533Arg) | D138: 0.999 | E138: probably damaging | F138: 0 | G138: damaging | H138: disease causing | I138: ✽ | J138: Yes | K138: pathogenic | L138: predicted pathogenic | M138: ClinVar
A139: EYA1 | B139: c.1639A>G | C139: (p.Arg547Gly) | D139: 1 | E139: probably damaging | F139: 0.025, 0.002, 0.032, 0.024, 0.019, 0.018 | G139: damaging | H139: disease causing | I139: ✽ | J139: Yes | K139: pathogenic | L139: predicted pathogenic | M139: ClinVar
A140: EYA1 | B140: c.1649T>A | C140: p.Val550Glu | D140: 1 | E140: probably damaging | F140: 0.01, 0.006, 0.007, 0.004 | G140: damaging | H140: disease causing | I140: ✽ | J140: Yes | K140: pathogenic | L140: predicted pathogenic | M140: LOVD
A141: EYA1 | B141: c.164C>T | C141: p.Thr55Met | D141: 0.657 | E141: P | F141: 0.058 | G141: T | H141: D | I141: ✽ | J141: Yes | K141: presumed benign | L141: predicted benign | M141: gnomAD allele count >30
A142: EYA1 | B142: c.1701C>A | C142: (p.His567Gln) | D142: 0.905 | E142: possibly damaging | F142: 0.066, 0.076, 0.08, 0.071, 0.074 | G142: tolerated | H142: disease causing | I142: ✽ | J142: Yes | K142: likely benign | L142: predicted benign | M142: ClinVar
A143: EYA1 | B143: c.1706T>C | C143: p.Met569Thr | D143: 0.6 | E143: possibly damaging | F143: 0.002, 0.003 | G143: damaging | H143: disease causing | I143: ✽ | J143: Yes | K143: pathogenic | L143: predicted benign | M143: LOVD
A144: EYA1 | B144: c.1733C>T | C144: p.Ser578Leu | D144: 0.984 | E144: probably damaging | F144: 0.002, 0.002, 0.002, 0.002, 0.002, 0.002, 0.002 | G144: damaging, damaging, damaging, damaging, damaging, damaging, damaging | H144: disease causing | I144: ✽ | J144: Yes | K144: DM | L144: predicted pathogenic | M144: HGMD
A145: EYA1 | B145: c.1739T>G | C145: (p.Leu580Arg) | D145: 0.999 | E145: probably damaging | F145: 0 | G145: damaging | H145: disease causing | I145: ✽ | J145: Yes | K145: likely pathogenic | L145: predicted pathogenic | M145: ClinVar
A146: EYA1 | B146: c.1748T>C | C146: (p.Leu583Pro) | D146: 1 | E146: probably damaging | F146: 0 | G146: damaging | H146: disease causing | I146: ✽ | J146: Yes | K146: likely pathogenic | L146: predicted pathogenic | M146: ClinVar
A147: EYA1 | B147: c.283C>T | C147: p.Pro95Ser | D147: 1 | E147: probably damaging | F147: 0.019, 0.018, 0.006, 0.008, 0.02 | G147: damaging | H147: disease causing | I147: ✽ | J147: Yes | K147: pathogenic | L147: predicted pathogenic | M147: LOVD
A148: EYA1 | B148: c.35G>A | C148: p.Arg12His | D148: 0.706 | E148: P | F148: 0.128 | G148: T | H148: D | I148: ✽ | J148: Yes | K148: presumed benign | L148: predicted benign | M148: gnomAD allele count >30
A149: EYA1 | B149: c.403G>A | C149: p.Gly135Ser | D149: 1 | E149: probably damaging | F149: 0.364, 0.364, 0.318, 0.295, 0.354, 0.281, 0.354 | G149: tolerated, tolerated, tolerated, tolerated, tolerated, tolerated, tolerated | H149: disease causing | I149: ✽ | J149: Yes | K149: DM | L149: predicted benign | M149: HGMD
A150: EYA1 | B150: c.418G>A | C150: p.Gly140Ser | D150: 0.987 | E150: probably damaging | F150: 0.23, 0.305, 0.249, 0.243, 0.242, 0.299 | G150: tolerated | H150: disease causing | I150: ✽ | J150: Yes | K150: pathogenic | L150: predicted benign | M150: LOVD
A151: EYA1 | B151: c.58C>G | C151: (p.Pro20Ala) | D151: 0.167 | E151: benign | F151: 0.011 | G151: damaging | H151: polymorphism | I151: ✽ | J151: Yes | K151: benign | L151: predicted benign | M151: ClinVar
A152: EYA1 | B152: c.638A>T | C152: p.Gln213Leu | D152: 0.997 | E152: probably damaging | F152: 0.054, 0.62, 0.048, 0.056, 0.045, 0.064 | G152: tolerated, damaging | H152: disease causing | I152: ✽ | J152: Yes | K152: pathogenic | L152: predicted benign | M152: LOVD
A153: EYA1 | B153: c.639G>C | C153: p.Gln213His | D153: 0.997 | E153: probably damaging | F153: 0.009, 0.009, 0.012, 0.019, 0.011, 0.025, 0.009 | G153: damaging, damaging, damaging, damaging, damaging, damaging, damaging | H153: disease causing | I153: ✽ | J153: Yes | K153: DM | L153: predicted pathogenic | M153: HGMD
A154: EYA1 | B154: c.640G>A | C154: (p.Asp214Asn) | D154: 0.527 | E154: possibly damaging | F154: 0.002, 0.001 | G154: damaging | H154: disease causing | J154: No | K154: likely pathogenic | L154: predicted benign | M154: ClinVar
A155: EYA1 | B155: c.724A>G | C155: (p.Ser242Gly) | D155: 0.091 | E155: benign | F155: 0.099, 0.058, 0.082, 0.085, 0.101, 0.089 | G155: tolerated | H155: disease causing | J155: No | K155: benign | L155: predicted benign | M155: ClinVar
A156: EYA1 | B156: c.743C>T | C156: (p.Thr248Met) | D156: 0.983 | E156: probably damaging | F156: 0.058, 0.052, 0.019, 0.021, 0.02 | G156: tolerated, damaging | H156: disease causing | I156: ✽ | J156: Yes | K156: likely benign | L156: predicted benign | M156: ClinVar
A157: EYA1 | B157: c.782C>T | C157: (p.Pro261Leu) | D157: 1 | E157: probably damaging | F157: 0.202, 0.201, 0.197, 0.2, 0.203 | G157: tolerated | H157: disease causing | I157: ✽ | J157: Yes | K157: benign | L157: predicted benign | M157: ClinVar
A158: EYA1 | B158: c.805G>A | C158: p.Ala269Thr | D158: 0.999 | E158: probably damaging | F158: 0.176, 0.168, 0.16, 0.161, 0.151, 0.192 | G158: tolerated | H158: disease causing | I158: ✽ | J158: Yes | K158: likely benign | L158: predicted benign | M158: LOVD
A159: EYA1 | B159: c.865G>T | C159: p.Asp289Tyr | D159: 0.897 | E159: P | F159: 0.019 | G159: D | H159: D | J159: No | K159: presumed benign | L159: predicted benign | M159: gnomAD allele count >30
A160: EYA1 | B160: c.884T>C | C160: p.Leu295Ser | D160: 0.518 | E160: P | F160: 0.751 | G160: T | H160: D | I160: ✽ | J160: Yes | K160: presumed benign | L160: predicted benign | M160: gnomAD allele count >30
A161: EYA1 | B161: c.887G>A | C161: (p.Arg296His) | D161: 0.999 | E161: probably damaging | F161: 0.241, 0.253, 0.247, 0.245, 0.248, 0.254 | G161: tolerated | H161: disease causing | I161: ✽ | J161: Yes | K161: benign | L161: predicted benign | M161: ClinVar
A162: EYA1 | B162: c.890G>A | C162: p.Arg297Gln | D162: 0.592 | E162: P | F162: 0.075 | G162: T | H162: D | I162: ✽ | J162: Yes | K162: presumed benign | L162: predicted benign | M162: gnomAD allele count >30
A163: EYA1 | B163: c.923G>A | C163: (p.Arg308Gln) | D163: 0.999 | E163: probably damaging | F163: 0.009, 0.01, 0.007, 0.008 | G163: damaging | H163: disease causing | I163: ✽ | J163: Yes | K163: benign/likely benign | L163: predicted pathogenic | M163: ClinVar
A164: EYA1 | B164: c.965A>G | C164: p.Glu322Gly | D164: 0.998 | E164: probably damaging | F164: 0 | G164: damaging | H164: disease causing | I164: ✽ | J164: Yes | K164: pathogenic | L164: predicted pathogenic | M164: LOVD
A165: EYA1 | B165: c.977T>A | C165: p.Ile326Asn | D165: 0.996 | E165: probably damaging | F165: 0 | G165: damaging | H165: disease causing | I165: ✽ | J165: Yes | K165: pathogenic | L165: predicted pathogenic | M165: LOVD
A166: EYA1 | B166: c.979T>C | C166: (p.Trp327Arg) | D166: 1 | E166: probably damaging | F166: 0.001, 0 | G166: damaging | H166: disease causing | I166: ✽ | J166: Yes | K166: likely pathogenic | L166: predicted pathogenic | M166: ClinVar
A167: PBX1 | B167: c.187G>T | C167: (p.Ala63Ser) | D167: 0.553 | E167: possibly damaging | F167: 0.048, 0.062, 0.055 | G167: tolerated, damaging | H167: disease causing | I167: ✽ | J167: Yes | K167: likely benign | L167: predicted benign | M167: ClinVar
A168: PBX1 | B168: c.197A>G | C168: p.Tyr66Cys | D168: 0.051 | E168: benign | F168: 0.002 | G168: damaging | H168: D | K168: presumed benign | L168: predicted benign | M168: gnomAD allele count >30
A169: PBX1 | B169: c.319C>T | C169: p.R107W | D169: 0.999 | E169: probably damaging | F169: 0.03 | G169: deleterious | H169: benign | I169: ✽ | J169: yes | K169: DM | L169: predicted benign | M169: HGMD
A170: PBX1 | B170: c.320G>A | C170: (p.Arg107Gln) | D170: 1 | E170: probably damaging | F170: 0.001, 0 | G170: damaging | H170: disease causing | I170: ✽ | J170: Yes | K170: likely pathogenic | L170: predicted pathogenic | M170: ClinVar
A171: PBX1 | B171: c.320G>C | C171: (p.Arg107Pro) | D171: 1 | E171: probably damaging | F171: 0.001, 0 | G171: damaging | H171: disease causing | I171: ✽ | J171: Yes | K171: likely pathogenic | L171: predicted pathogenic | M171: ClinVar
A172: PBX1 | B172: c.551G>C | C172: p.R184P | D172: 0.995 | E172: probably damaging | F172: 0 | G172: deleterious | H172: deleterious | I172: ✽ | J172: yes | K172: DM | L172: predicted pathogenic | M172: HGMD
A173: PBX1 | B173: c.61G>A | C173: p.Gly21Ser | D173: 0.025 | E173: B | F173: 0.118 | G173: T | H173: P | I173: ✽ | J173: Yes | K173: presumed benign | L173: predicted benign | M173: gnomAD allele count >30
A174: PBX1 | B174: c.671T>A | C174: p.M224K | D174: 0.906 | E174: possibly damaging | F174: 0.04 | G174: deleterious | H174: deleterious | I174: ✽ | J174: yes | K174: DM | L174: predicted benign | M174: HGMD
A175: PBX1 | B175: c.680G>C | C175: (p.Arg227Pro) | D175: 0.999 | E175: probably damaging | F175: 0.001, 0 | G175: damaging | H175: disease causing | I175: ✽ | J175: Yes | K175: pathogenic | L175: predicted pathogenic | M175: ClinVar
A176: PBX1 | B176: c.700C>T | C176: p.R234W | D176: 1 | E176: probably damaging | F176: 0.03 | G176: deleterious | H176: deleterious | I176: ✽ | J176: yes | K176: DM | L176: predicted pathogenic | M176: HGMD
A177: PBX1 | B177: c.701G>A | C177: (p.Arg234Gln) | D177: 1 | E177: probably damaging | F177: 0.001, 0 | G177: damaging | H177: disease causing | I177: ✽ | J177: Yes | K177: likely pathogenic | L177: predicted pathogenic | M177: ClinVar
A178: PBX1 | B178: c.701G>C | C178: (p.Arg234Pro) | D178: 1 | E178: probably damaging | F178: 0.002, 0, 0.004 | G178: damaging | H178: disease causing | I178: ✽ | J178: Yes | K178: likely pathogenic | L178: predicted pathogenic | M178: ClinVar
A179: PBX1 | B179: c.703C>T | C179: (p.Arg235Trp) | D179: 0.598 | E179: possibly damaging | F179: 0 | G179: damaging | H179: disease causing | I179: ✽ | J179: Yes | K179: likely pathogenic | L179: predicted benign | M179: ClinVar
A180: PBX1 | B180: c.704G>A | C180: (p.Arg235Gln) | D180: 0.996 | E180: probably damaging | F180: 0.001, 0.002 | G180: damaging | H180: disease causing | I180: ✽ | J180: Yes | K180: pathogenic | L180: predicted pathogenic | M180: ClinVar
A181: PBX1 | B181: c.704G>T | C181: p.(Arg235Leu) | D181: 0.983 | E181: probably damaging | F181: 0.001 | G181: damaging | H181: disease causing | I181: ✽ | J181: Yes | K181: pathogenic | L181: predicted pathogenic | M181: LOVD
A182: PBX1 | B182: c.758A>C | C182: (p.Tyr253Ser) | D182: 0.881 | E182: possibly damaging | F182: 0.004, 0.003 | G182: damaging | H182: disease causing | I182: ✽ | J182: Yes | K182: likely pathogenic | L182: predicted benign | M182: ClinVar
A183: PBX1 | B183: c.760T>C | C183: (p.Ser254Pro) | D183: 0.997 | E183: probably damaging | F183: 0.001 | G183: damaging | H183: disease causing | I183: ✽ | J183: Yes | K183: likely pathogenic | L183: predicted pathogenic | M183: ClinVar
A184: PBX1 | B184: c.817T>C | C184: (p.Cys273Arg) | D184: 0.431 | E184: benign | F184: 0.002, 0.001 | G184: damaging | H184: disease causing | I184: ✽ | J184: Yes | K184: likely pathogenic | L184: predicted benign | M184: ClinVar
A185: PBX1 | B185: c.818G>A | C185: (p.Cys273Tyr) | D185: 0.998 | E185: probably damaging | F185: 0.001, 0 | G185: damaging | H185: disease causing | I185: ✽ | J185: Yes | K185: likely pathogenic | L185: predicted pathogenic | M185: ClinVar
A186: PBX1 | B186: c.836A>G | C186: (p.Gln279Arg) | D186: 1 | E186: probably damaging | F186: 0 | G186: damaging | H186: disease causing | I186: ✽ | J186: Yes | K186: likely pathogenic | L186: predicted pathogenic | M186: ClinVar
A187: PBX1 | B187: c.868C>T | C187: (p.Arg290Trp) | D187: 1 | E187: probably damaging | F187: 0 | G187: damaging | H187: disease causing | I187: ✽ | J187: Yes | K187: pathogenic | L187: predicted pathogenic | M187: ClinVar
A188: PBX1 | B188: c.92G>T | C188: (p.Gly31Val) | D188: 0.005 | E188: benign | F188: 0.152, 0.212, 0.155, 0.104 | G188: tolerated | H188: disease causing | I188: ✽ | J188: Yes | K188: likely benign | L188: predicted benign | M188: ClinVar
A189: GATA3 | B189: c.1017C>G | C189: p.Cys339Trp | D189: 1 | E189: probably damaging (ensembl) | F189: 0, 0 | G189: damaging, damaging | H189: disease causing | I189: ✽ | J189: Yes | K189: DM | L189: predicted pathogenic | M189: HGMD
A190: GATA3 | B190: c.1022C>T | C190: p.Ala341Val | D190: 1 | E190: probably damaging (ensembl) | F190: 0 | G190: damaging | H190: disease causing | I190: ✽ | J190: Yes | K190: likely pathogenic | L190: predicted pathogenic | M190: LOVD
A191: GATA3 | B191: c.1025G>A | C191: p.Cys342Tyr | D191: 1 | E191: probably damaging (ensembl) | F191: 0 | G191: damaging | H191: disease causing | I191: ✽ | J191: Yes | K191: pathogenic | L191: predicted pathogenic | M191: LOVD
A192: GATA3 | B192: c.1025G>A | C192: (p.Cys342Tyr) | D192: 1 | E192: probably damaging (ensembl) | F192: 0 | G192: damaging | H192: disease causing | I192: ✽ | J192: Yes | K192: pathogenic | L192: predicted pathogenic | M192: ClinVar
A193: GATA3 | B193: c.1030C>T | C193: p.Leu344Phe | D193: 1 | E193: probably damaging (ensembl) | F193: 0 | G193: damaging | H193: disease causing | I193: ✽ | J193: Yes | K193: pathogenic | L193: predicted pathogenic | M193: LOVD
A194: GATA3 | B194: c.1043T>G | C194: p.Leu348Arg | D194: 1 | E194: probably damaging (ensembl) | F194: 0 | G194: damaging | H194: disease causing | I194: ✽ | J194: Yes | K194: pathogenic | L194: predicted pathogenic | M194: LOVD
A195: GATA3 | B195: c.1058G>C | C195: (p.Arg353Thr) | D195: 0.921 | E195: probably damaging (ensembl) | F195: 0.001 | G195: damaging | H195: disease causing | I195: ✽ | J195: Yes | K195: likely pathogenic | L195: predicted benign | M195: ClinVar
A196: GATA3 | B196: c.1059A>T | C196: p.Arg353Ser | D196: 0.992 | E196: probably damaging (ensembl) | F196: 0.0011 | G196: damaging | H196: disease causing | I196: ✽ | J196: Yes | K196: pathogenic | L196: predicted pathogenic | M196: LOVD
A197: GATA3 | B197: c.1059A>T | C197: (p.Arg353Ser) | D197: 0.992 | E197: probably damaging (ensembl) | F197: 0.001 | G197: damaging | H197: disease causing | I197: ✽ | J197: Yes | K197: pathogenic | L197: predicted pathogenic | M197: ClinVar
A198: GATA3 | B198: c.1186G>A | C198: p.Ala396Thr | D198: 0.239 | E198: B | F198: 0.081 | G198: T | H198: D | I198: ✽ | J198: Yes | K198: presumed benign | L198: predicted benign | M198: gnomAD allele count >30
A199: GATA3 | B199: c.1186G>A | C199: (p.Ala396Thr) | D199: 0.236 | E199: benign (ensembl) | F199: 0.128, 0.127 | G199: tolerated | H199: disease causing | I199: ✽ | J199: Yes | K199: benign/likely benign | L199: predicted benign | M199: ClinVar
A200: GATA3 | B200: c.1262C>T | C200: (p.Thr421Met) | D200: 0.979 | E200: probably damaging | F200: 0.001 | G200: damaging | H200: disease causing | I200: ✽ | J200: Yes | K200: likely pathogenic | L200: predicted pathogenic | M200: ClinVar
... 93 more rows

Sheet PAX2 calculations
A1: ClinVar | B1: +ve | C1: -ve | G1: LOVD | H1: +ve | I1: -ve | M1: HGMD | N1: +ve | O1: -ve | S1: allele count >30 | T1: +ve | U1: -ve
A2: +ve | B2: 18 | C2: 0 | D2: =SUM(B2:C2) -> 18 | G2: +ve | H2: 17 | I2: 0 | J2: =SUM(H2:I2) -> 17 | M2: +ve | N2: 12 | O2: 0 | P2: =SUM(N2:O2) -> 12 | S2: +ve | T2: 0 | U2: 0 | V2: =SUM(T2:U2) -> 0
A3: -ve | B3: 1 | C3: 1 | D3: =SUM(B3:C3) -> 2 | G3: -ve | H3: 2 | I3: 3 | J3: =SUM(H3:I3) -> 5 | M3: -ve | N3: 0 | O3: 0 | P3: =SUM(N3:O3) -> 0 | S3: -ve | T3: 0 | U3: 6 | V3: =SUM(T3:U3) -> 6
A4: total | B4: 19 | C4: 1 | D4: 20 | G4: total | H4: 19 | I4: 3 | J4: 22 | M4: total | N4: 12 | O4: 0 | P4: 12 | S4: total | T4: =SUM(T2:T3) -> 0 | U4: =SUM(U2:U3) -> 6 | V4: 6
B6: sensitivity | C6: =B2/B4*100 -> 95 | H6: sensitivity | I6: =H2/H4*100 -> 89 | N6: sensitivity | O6: =N2/N4*100 -> 100 | T6: sensitivity | U6: =T2/T4*100 -> 
B7: specificity | C7: =C3/C4*100 -> 100 | H7: specificity | I7: =I3/I4*100 -> 100 | N7: specificity | O7: =O3/O4*100 ->  | T7: specificity | U7: =U3/U4*100 -> 100
B8: PPV | C8: =B2/D2*100 -> 100 | H8: PPV | I8: =H2/J2*100 -> 100 | N8: PPV | O8: =N2/P2*100 -> 100 | T8: PPV | U8: =T2/V2*100 -> 
B9: NPV | C9: =C3/D3*100 -> 50 | H9: NPV | I9: =I3/J3*100 -> 60 | N9: NPV | O9: =O3/P3*100 ->  | T9: NPV | U9: =U3/V3*100 -> 100
J12: All | K12: +ve | L12: -ve
J13: +ve | K13: =SUM(B2,H2,N2,T2) -> 47 | L13: 0 | M13: =SUM(K13:L13) -> 47
J14: -ve | K14: 3 | L14: 10 | M14: =SUM(K14:L14) -> 13
J15: total | K15: 50 | L15: 10 | M15: 60
K17: sensitivity | L17: =K13/K15*100 -> 94
K18: specificity | L18: =L14/L15*100 -> 100
K19: PPV | L19: =K13/M13*100 -> 100
K20: NPV | L20: =L14/M14*100 -> 77
A23: BENIGN VARIANTS
A24: Gene | B24: c.DNA | C24: p.change | D24: PP2 SCORE | E24: PP2 PREDICTION | F24: SIFT4G SCORE (VARSOME) | G24: SIFT4G PREDICTION (VARSOME) | H24: MT | I24: Conservation | J24: Conservation conclusion | K24: Database classification | L24: OUR CONCLUSION | M24: DATABASE
A25: PAX2 | B25: c.1001C>T | C25: p.Ala334Val | D25: 0.371 | E25: B | F25: 0.208 | G25: T | H25: D | K25: presumed benign | L25: predicted benign | M25: gnomAD allele count >30
A26: PAX2 | B26: c.1127A>C | C26: p.Gln376Pro | D26: 0.983 | E26: D | F26: 0.406 | G26: T | H26: D | K26: presumed benign | L26: predicted benign | M26: gnomAD allele count >30
A27: PAX2 | B27: c.491C>A | C27: p.Thr164Asn | D27: 0.996 | E27: D | F27: 0.233 | G27: T | H27: D | I27: ✽ | J27: Yes | K27: presumed benign | L27: predicted benign | M27: gnomAD allele count >30
A28: PAX2 | B28: c.728G>A | C28: (p.Arg243Gln) | D28: not found | F28: 0.159, 0.268, 0.174 | G28: tolerated | H28: disease causing | I28: ✽ | J28: Yes | K28: likely benign | L28: predicted benign | M28: ClinVar
A29: PAX2 | B29: c.797G>A | C29: p.Arg266Gln | D29: 0.988 | E29: D | F29: 0.275 | G29: T | H29: D | K29: presumed benign | L29: predicted benign | M29: gnomAD allele count >30
A30: PAX2 | B30: c.8G>C | C30: p.Gly3Ala | D30: . | E30: . | F30: 0.192 | G30: T | H30: D | K30: presumed benign | L30: predicted benign | M30: gnomAD allele count >30
A31: PAX2 | B31: c.936C>G | C31: p.Asn312Lys | D31: 0.117 | E31: B | F31: 0.956 | G31: T | H31: D | K31: presumed benign | L31: predicted benign | M31: gnomAD allele count >30
A34: PATHOGENIC VARIANTS
A35: Gene | B35: c.DNA | C35: p.change | D35: PP2 SCORE | E35: PP2 PREDICTION | F35: SIFT4G SCORE (VARSOME) | G35: SIFT4G PREDICTION (VARSOME) | H35: MT | I35: Conservation | J35: Conservation conclusion | K35: Database classification | L35: OUR CONCLUSION | M35: DATABASE
A36: PAX2 | B36: c.113G>A | C36: p.Arg38Lys | D36: 1 | E36: probably damaging | F36: 0, 0, 0, 0, 0, 0 | G36: damaging, damaging, damaging, damaging, damaging, damaging | H36: disease causing | I36: ✽ | J36: Yes | K36: DM | L36: predicted pathogenic | M36: HGMD
A37: PAX2 | B37: c.113G>A | C37: (p.Arg38Lys) | D37: 0.999 | E37: probably damaging | F37: 0 | G37: damaging | H37: disease causing | I37: ✽ | J37: Yes | K37: likely pathogenic | L37: predicted pathogenic | M37: ClinVar
A38: PAX2 | B38: c.130C>G | C38: p.Leu44Val | D38: 0.997 | E38: probably damaging | F38: 0.002, 0.002, 0.002, 0.002, 0.001, 0.002 | G38: damaging, damaging, damaging, damaging, damaging, damaging | H38: disease causing | I38: ✽ | J38: Yes | K38: DM | L38: predicted pathogenic | M38: HGMD
A39: PAX2 | B39: c.148C>T | C39: p.Arg50Trp | D39: 1 | E39: probably damaging | F39: 0, 0, 0, 0, 0, 0 | G39: damaging, damaging, damaging, damaging, damaging, damaging | H39: disease causing | I39: ✽ | J39: Yes | K39: DM | L39: predicted pathogenic | M39: HGMD
A40: PAX2 | B40: c.148C>T | C40: (p.Arg50Trp) | D40: 1 | E40: probably damaging | F40: 0 | G40: damaging | H40: disease causing | I40: ✽ | J40: Yes | K40: likely pathogenic | L40: predicted pathogenic | M40: ClinVar
A41: PAX2 | B41: c.155G>A | C41: p.Cys52Tyr | D41: 1 | E41: probably damaging | F41: 0 | G41: damaging | H41: disease causing | I41: ✽ | J41: Yes | K41: likely pathogenic | L41: predicted pathogenic | M41: LOVD
A42: PAX2 | B42: c.167G>A | C42: p.Arg56Gln | D42: 1 | E42: probably damaging | F42: 0.001 | G42: damaging | H42: disease causing | I42: ✽ | J42: Yes | K42: likely pathogenic | L42: predicted pathogenic | M42: LOVD
A43: PAX2 | B43: c.167G>A | C43: (p.Arg56Gln) | D43: 1 | E43: probably damaging | F43: 0.001 | G43: damaging | H43: disease causing | I43: ✽ | J43: Yes | K43: pathogenic | L43: predicted pathogenic | M43: ClinVar
A44: PAX2 | B44: c.175C>T | C44: p.Arg59Trp | D44: 1 | E44: probably damaging | F44: 0, 0, 0, 0, 0, 0 | G44: damaging, damaging, damaging, damaging, damaging, damaging | H44: disease causing | I44: ✽ | J44: Yes | K44: DM | L44: predicted pathogenic | M44: HGMD
A45: PAX2 | B45: c.182G>A | C45: p.Ser61Asn | D45: 0.982 | E45: probably damaging | F45: 0 | G45: damaging | H45: disease causing | I45: ✽ | J45: Yes | K45: likely pathogenic | L45: predicted pathogenic | M45: LOVD
A46: PAX2 | B46: c.182G>T | C46: p.Ser61Ile | D46: 1 | E46: probably damaging | F46: 0 | G46: damaging | H46: disease causing | I46: ✽ | J46: Yes | K46: likely pathogenic | L46: predicted pathogenic | M46: LOVD
A47: PAX2 | B47: c.183C>A | C47: p.Ser61Arg | D47: 1 | E47: probably damaging | F47: 0 | G47: damaging | H47: disease causing | I47: ✽ | J47: Yes | K47: likely pathogenic | L47: predicted pathogenic | M47: LOVD
A48: PAX2 | B48: c.187G>A | C48: p.Gly63Ser | D48: 1 | E48: probably damaging | F48: 0 | G48: damaging | H48: disease causing | I48: ✽ | J48: Yes | K48: likely pathogenic/pathogenic | L48: predicted pathogenic | M48: LOVD
A49: PAX2 | B49: c.187G>A | C49: (p.Gly63Ser) | D49: 1 | E49: probably damaging | F49: 0 | G49: damaging | H49: disease causing | I49: ✽ | J49: Yes | K49: pathogenic | L49: predicted pathogenic | M49: ClinVar
A50: PAX2 | B50: c.206T>C | C50: p.Leu69Pro | D50: 1 | E50: probably damaging | F50: 0 | G50: damaging | H50: disease causing | I50: ✽ | J50: Yes | K50: likely pathogenic | L50: predicted pathogenic | M50: LOVD
A51: PAX2 | B51: c.211A>G | C51: p.Arg71Gly | D51: 0.999 | E51: probably damaging | F51: 0 | G51: damaging | H51: disease causing | I51: ✽ | J51: Yes | K51: likely pathogenic | L51: predicted pathogenic | M51: LOVD
A52: PAX2 | B52: c.212G>A | C52: p.Arg71Lys | D52: 0.937 | E52: possibly damaging | F52: 0 | G52: damaging | H52: disease causing | I52: ✽ | J52: Yes | K52: likely pathogenic | L52: predicted benign | M52: LOVD
A53: PAX2 | B53: c.212G>C | C53: p.Arg71Thr | D53: 0.802 | E53: possibly damaging | F53: 0 | G53: damaging | H53: disease causing | I53: ✽ | J53: Yes | K53: likely pathogenic | L53: predicted benign | M53: LOVD
A54: PAX2 | B54: c.212G>C | C54: (p.Arg71Thr) | D54: 0.802 | E54: possibly damaging | F54: 0 | G54: damaging | H54: disease causing | I54: ✽ | J54: Yes | K54: pathogenic | L54: predicted benign | M54: ClinVar
A55: PAX2 | B55: c.224C>T | C55: (p.Thr75Ile) | D55: 1 | E55: probably damaging | F55: 0 | G55: damaging | H55: disease causing | I55: ✽ | J55: Yes | K55: likely pathogenic | L55: predicted pathogenic | M55: ClinVar
A56: PAX2 | B56: c.226G>A | C56: p.Gly76Ser | D56: 1 | E56: probably damaging | F56: 0 | G56: damaging | H56: disease causing | I56: ✽ | J56: Yes | K56: likely pathogenic/pathogenic | L56: predicted pathogenic | M56: LOVD
A57: PAX2 | B57: c.226G>A | C57: (p.Gly76Ser) | D57: 1 | E57: probably damaging | F57: 0 | G57: damaging | H57: disease causing | I57: ✽ | J57: Yes | K57: likely pathogenic | L57: predicted pathogenic | M57: ClinVar
A58: PAX2 | B58: c.226G>C | C58: (p.Gly76Arg) | D58: 1 | E58: probably damaging | F58: 0 | G58: damaging | H58: disease causing | I58: ✽ | J58: Yes | K58: likely pathogenic | L58: predicted pathogenic | M58: ClinVar
A59: PAX2 | B59: c.239C>A | C59: (p.Pro80Gln) | D59: 1 | E59: probably damaging | F59: 0 | G59: damaging | H59: disease causing | I59: ✽ | J59: Yes | K59: likely pathogenic | L59: predicted pathogenic | M59: ClinVar
A60: PAX2 | B60: c.239C>T | C60: p.Pro80Leu | D60: 1 | E60: probably damaging | F60: 0 | G60: damaging | H60: disease causing | I60: ✽ | J60: Yes | K60: likely pathogenic | L60: predicted pathogenic | M60: LOVD
A61: PAX2 | B61: c.239C>T | C61: (p.Pro80Leu) | D61: 1 | E61: probably damaging | F61: 0 | G61: damaging | H61: disease causing | I61: ✽ | J61: Yes | K61: pathogenic/likely pathogenic | L61: predicted pathogenic | M61: ClinVar
A62: PAX2 | B62: c.250G>A | C62: p.Gly84Ser | D62: 1 | E62: probably damaging | F62: 0 | G62: damaging | H62: disease causing | I62: ✽ | J62: Yes | K62: likely pathogenic | L62: predicted pathogenic | M62: LOVD
A63: PAX2 | B63: c.250G>A | C63: (p.Gly84Ser) | D63: 1 | E63: probably damaging | F63: 0 | G63: damaging | H63: disease causing | I63: ✽ | J63: Yes | K63: pathogenic | L63: predicted pathogenic | M63: ClinVar
A64: PAX2 | B64: c.254G>T | C64: (p.Gly85Val) | D64: 1 | E64: probably damaging | F64: 0 | G64: damaging | H64: disease causing | I64: ✽ | J64: Yes | K64: likely pathogenic | L64: predicted pathogenic | M64: ClinVar
A65: PAX2 | B65: c.263C>T | C65: p.Pro88Leu | D65: 1 | E65: probably damaging | F65: 0 | G65: damaging | H65: disease causing | I65: ✽ | J65: Yes | K65: likely pathogenic | L65: predicted pathogenic | M65: LOVD
A66: PAX2 | B66: c.275C>T | C66: (p.Thr92Met) | D66: 1 | E66: probably damaging | F66: 0 | G66: damaging | H66: disease causing | I66: ✽ | J66: Yes | K66: likely pathogenic | L66: predicted pathogenic | M66: ClinVar
A67: PAX2 | B67: c.350G>C | C67: p.Arg117Pro | D67: 1 | E67: probably damaging | F67: 0.001, 0 | G67: damaging | H67: disease causing | I67: ✽ | J67: Yes | K67: likely pathogenic | L67: predicted pathogenic | M67: LOVD
A68: PAX2 | B68: c.388C>T | C68: (p.Pro130Ser) | D68: 1 | E68: probably damaging | F68: 0 | G68: damaging | H68: disease causing | I68: ✽ | J68: Yes | K68: likely pathogenic | L68: predicted pathogenic | M68: ClinVar
A69: PAX2 | B69: c.418C>T | C69: (p.Arg140Trp) | D69: 1 | E69: probably damaging | F69: 0 | G69: damaging | H69: disease causing | I69: ✽ | J69: Yes | K69: pathogenic | L69: predicted pathogenic | M69: ClinVar
A70: PAX2 | B70: c.419G>A | C70: (p.Arg140Gln) | D70: 1 | E70: probably damaging | F70: 0.01, 0.008, 0.003 | G70: damaging | H70: disease causing | I70: ✽ | J70: Yes | K70: likely pathogenic | L70: predicted pathogenic | M70: ClinVar
A71: PAX2 | B71: c.419G>T | C71: (p.Arg140Leu) | D71: 1 | E71: probably damaging | F71: 0 | G71: damaging | H71: disease causing | I71: ✽ | J71: Yes | K71: likely pathogenic | L71: predicted pathogenic | M71: ClinVar
A72: PAX2 | B72: c.565G>A | C72: (p.Gly189Arg) | D72: 0.991 | E72: probably damaging | F72: 0.001, 0, 0.012 | G72: damaging | H72: disease causing | I72: ✽ | J72: Yes | K72: pathogenic | L72: predicted pathogenic | M72: ClinVar
A73: PAX2 | B73: c.5A>G | C73: p.Asp2Gly | D73: 0.998 | E73: probably damaging | F73: 0.001, 0.002, 0.004, 0.003 | G73: damaging | H73: disease causing | J73: No | K73: likely pathogenic | L73: predicted pathogenic | M73: LOVD
A74: PAX2 | B74: c.68T>C | C74: p.Leu23Pro | D74: 1 | E74: probably damaging | F74: 0, 0, 0, 0, 0, 0 | G74: damaging, damaging, damaging, damaging, damaging, damaging | H74: disease causing | I74: ✽ | J74: Yes | K74: DM | L74: predicted pathogenic | M74: HGMD
A75: PAX2 | B75: c.70G>C | C75: p.Gly24Arg | D75: 1 | E75: probably damaging | F75: 0, 0, 0, 0, 0, 0 | G75: damaging, damaging, damaging, damaging, damaging, damaging | H75: disease causing | I75: ✽ | J75: Yes | K75: DM | L75: predicted pathogenic | M75: HGMD
A76: PAX2 | B76: c.70G>T | C76: p.Gly24Trp | D76: 1 | E76: probably damaging | F76: 0, 0, 0, 0, 0, 0 | G76: damaging, damaging, damaging, damaging, damaging, damaging | H76: disease causing | I76: ✽ | J76: Yes | K76: DM | L76: predicted pathogenic | M76: HGMD
A77: PAX2 | B77: c.70G>T | C77: (p.Gly24Trp) | D77: 1 | E77: probably damaging | F77: 0 | G77: damaging | H77: disease causing | I77: ✽ | J77: Yes | K77: likely pathogenic | L77: predicted pathogenic | M77: ClinVar
A78: PAX2 | B78: c.71G>A | C78: p.Gly24Glu | D78: 1 | E78: probably damaging | F78: 0 | G78: damaging | H78: disease causing | I78: ✽ | J78: Yes | K78: likely pathogenic | L78: predicted pathogenic | M78: LOVD
A79: PAX2 | B79: c.71G>C | C79: p.Gly24Ala | D79: 0.999 | E79: probably damaging | F79: 0, 0, 0, 0, 0.007, 0 | G79: damaging, damaging, damaging, damaging, damaging, damaging | H79: disease causing | I79: ✽ | J79: Yes | K79: DM | L79: predicted pathogenic | M79: HGMD
A80: PAX2 | B80: c.71G>T | C80: p.Gly24Val | D80: 1 | E80: probably damaging | F80: 0, 0, 0, 0, 0, 0 | G80: damaging, damaging, damaging, damaging, damaging, damaging | H80: disease causing | I80: ✽ | J80: Yes | K80: DM | L80: predicted pathogenic | M80: HGMD
A81: PAX2 | B81: c.74G>A | C81: p.Gly25Glu | D81: 1 | E81: probably damaging | F81: 0, 0, 0, 0, 0, 0 | G81: damaging, damaging, damaging, damaging, damaging, damaging | H81: disease causing | I81: ✽ | J81: Yes | K81: DM | L81: predicted pathogenic | M81: HGMD
A82: PAX2 | B82: c.74G>T | C82: p.Gly25Val | D82: 1 | E82: probably damaging | F82: 0 | G82: damaging | H82: disease causing | I82: ✽ | J82: Yes | K82: likely pathogenic | L82: predicted pathogenic | M82: LOVD
A83: PAX2 | B83: c.88G>T | C83: p.Gly30Cys | D83: 1 | E83: probably damaging | F83: 0, 0, 0, 0, 0, 0 | G83: damaging, damaging, damaging, damaging, damaging, damaging | H83: disease causing | I83: ✽ | J83: Yes | K83: DM | L83: predicted pathogenic | M83: HGMD
A84: PAX2 | B84: c.89G>T | C84: p.Gly30Val | D84: 1 | E84: probably damaging | F84: 0, 0, 0, 0, 0, 0 | G84: damaging, damaging, damaging, damaging, damaging, damaging | H84: disease causing | I84: ✽ | J84: Yes | K84: DM | L84: predicted pathogenic | M84: HGMD
A85: PAX2 | B85: c.98T>G | C85: p.Leu33Arg | D85: 1 | E85: probably damaging | F85: 0 | G85: damaging | H85: disease causing | I85: ✽ | J85: Yes | K85: likely pathogenic | L85: predicted pathogenic | M85: LOVD

Sheet GATA3 calculations
A1: ClinVar | B1: +ve | C1: -ve | G1: LOVD | H1: +ve | I1: -ve | M1: HGMD | N1: +ve | O1: -ve | S1: allele count >30 | T1: +ve | U1: -ve
A2: +ve | B2: 14 | C2: 0 | D2: =SUM(B2:C2) -> 14 | G2: +ve | H2: 13 | I2: 0 | J2: =SUM(H2:I2) -> 13 | M2: +ve | N2: 10 | O2: 0 | P2: =SUM(N2:O2) -> 10 | S2: +ve | T2: 0 | U2: 0 | V2: =SUM(T2:U2) -> 0
A3: -ve | B3: 1 | C3: 2 | D3: =SUM(B3:C3) -> 3 | G3: -ve | H3: 4 | I3: 0 | J3: =SUM(H3:I3) -> 4 | M3: -ve | N3: 1 | O3: 0 | P3: =SUM(N3:O3) -> 1 | S3: -ve | T3: 0 | U3: 3 | V3: =SUM(T3:U3) -> 3
A4: total | B4: 15 | C4: 2 | D4: 17 | G4: total | H4: 17 | I4: 0 | J4: 17 | M4: total | N4: =SUM(N2:N3) -> 11 | O4: =SUM(O2:O3) -> 0 | P4: 11 | S4: total | T4: =SUM(T2:T3) -> 0 | U4: =SUM(U2:U3) -> 3 | V4: 3
B6: sensitivity | C6: =B2/B4*100 -> 93 | H6: sensitivity | I6: =H2/H4*100 -> 76 | N6: sensitivity | O6: =N2/N4*100 -> 91 | T6: sensitivity | U6: =T2/T4*100 -> 
B7: specificity | C7: =C3/C4*100 -> 100 | H7: specificity | I7: =I3/I4*100 ->  | N7: specificity | O7: =O3/O4*100 ->  | T7: specificity | U7: =U3/U4*100 -> 100
B8: PPV | C8: =B2/D2*100 -> 100 | H8: PPV | I8: =H2/J2*100 -> 100 | N8: PPV | O8: =N2/P2*100 -> 100 | T8: PPV | U8: =T2/V2*100 -> 
B9: NPV | C9: =C3/D3*100 -> 67 | H9: NPV | I9: =I3/J3*100 -> 0 | N9: NPV | O9: =O3/P3*100 -> 0 | T9: NPV | U9: =U3/V3*100 -> 100
J12: All | K12: +ve | L12: -ve
J13: +ve | K13: =SUM(B2,H2,N2,T2) -> 37 | L13: 0 | M13: =SUM(K13:L13) -> 37
J14: -ve | K14: 6 | L14: 5 | M14: =SUM(K14:L14) -> 11
J15: total | K15: 43 | L15: 5 | M15: 48
K17: sensitivity | L17: =K13/K15*100 -> 86
K18: specificity | L18: =L14/L15*100 -> 100
K19: PPV | L19: =K13/M13*100 -> 100
K20: NPV | L20: =L14/M14*100 -> 45
A23: BENIGN VARIANTS
A24: Gene | B24: c.DNA | C24: p.change | D24: PP2 SCORE | E24: PP2 PREDICTION | F24: SIFT4G SCORE (VARSOME) | G24: SIFT4G PREDICTION (VARSOME) | H24: MT | I24: Conservation | J24: Conservation conclusion | K24: Database classification | L24: OUR CONCLUSION | M24: DATABASE
A25: GATA3 | B25: c.1186G>A | C25: p.Ala396Thr | D25: 0.239 | E25: B | F25: 0.081 | G25: T | H25: D | I25: ✽ | J25: Yes | K25: presumed benign | L25: predicted benign | M25: gnomAD allele count >30
A26: GATA3 | B26: c.1186G>A | C26: (p.Ala396Thr) | D26: 0.236 | E26: benign (ensembl) | F26: 0.128, 0.127 | G26: tolerated | H26: disease causing | I26: ✽ | J26: Yes | K26: benign/likely benign | L26: predicted benign | M26: ClinVar
A27: GATA3 | B27: c.724G>A | C27: p.Gly242Ser | D27: 0.652 | E27: P | F27: 0.186 | G27: T | H27: D | I27: ✽ | J27: Yes | K27: presumed benign | L27: predicted benign | M27: gnomAD allele count >30
A28: GATA3 | B28: c.724G>A | C28: (p.Gly242Ser) | D28: 0.937 | E28: possibly damaging | F28: 0.109, 0.111 | G28: tolerated | H28: disease causing | I28: ✽ | J28: Yes | K28: likely benign | L28: predicted benign | M28: ClinVar
A29: GATA3 | B29: c.82C>A | C29: p.His28Asn | D29: 0.966 | E29: D | F29: 0.114 | G29: T | H29: D | I29: ✽ | J29: Yes | K29: presumed benign | L29: predicted benign | M29: gnomAD allele count >30
A32: PATHOGENIC VARIANTS
A33: Gene | B33: c.DNA | C33: p.change | D33: PP2 SCORE | E33: PP2 PREDICTION | F33: SIFT4G SCORE (VARSOME) | G33: SIFT4G PREDICTION (VARSOME) | H33: MT | I33: Conservation | J33: Conservation conclusion | K33: Database classification | L33: OUR CONCLUSION | M33: DATABASE
A34: GATA3 | B34: c.1017C>G | C34: p.Cys339Trp | D34: 1 | E34: probably damaging (ensembl) | F34: 0, 0 | G34: damaging, damaging | H34: disease causing | I34: ✽ | J34: Yes | K34: DM | L34: predicted pathogenic | M34: HGMD
A35: GATA3 | B35: c.1022C>T | C35: p.Ala341Val | D35: 1 | E35: probably damaging (ensembl) | F35: 0 | G35: damaging | H35: disease causing | I35: ✽ | J35: Yes | K35: likely pathogenic | L35: predicted pathogenic | M35: LOVD
A36: GATA3 | B36: c.1025G>A | C36: p.Cys342Tyr | D36: 1 | E36: probably damaging (ensembl) | F36: 0 | G36: damaging | H36: disease causing | I36: ✽ | J36: Yes | K36: pathogenic | L36: predicted pathogenic | M36: LOVD
A37: GATA3 | B37: c.1025G>A | C37: (p.Cys342Tyr) | D37: 1 | E37: probably damaging (ensembl) | F37: 0 | G37: damaging | H37: disease causing | I37: ✽ | J37: Yes | K37: pathogenic | L37: predicted pathogenic | M37: ClinVar
A38: GATA3 | B38: c.1030C>T | C38: p.Leu344Phe | D38: 1 | E38: probably damaging (ensembl) | F38: 0 | G38: damaging | H38: disease causing | I38: ✽ | J38: Yes | K38: pathogenic | L38: predicted pathogenic | M38: LOVD
A39: GATA3 | B39: c.1043T>G | C39: p.Leu348Arg | D39: 1 | E39: probably damaging (ensembl) | F39: 0 | G39: damaging | H39: disease causing | I39: ✽ | J39: Yes | K39: pathogenic | L39: predicted pathogenic | M39: LOVD
A40: GATA3 | B40: c.1058G>C | C40: (p.Arg353Thr) | D40: 0.921 | E40: probably damaging (ensembl) | F40: 0.001 | G40: damaging | H40: disease causing | I40: ✽ | J40: Yes | K40: likely pathogenic | L40: predicted benign | M40: ClinVar
A41: GATA3 | B41: c.1059A>T | C41: p.Arg353Ser | D41: 0.992 | E41: probably damaging (ensembl) | F41: 0.0011 | G41: damaging | H41: disease causing | I41: ✽ | J41: Yes | K41: pathogenic | L41: predicted pathogenic | M41: LOVD
A42: GATA3 | B42: c.1059A>T | C42: (p.Arg353Ser) | D42: 0.992 | E42: probably damaging (ensembl) | F42: 0.001 | G42: damaging | H42: disease causing | I42: ✽ | J42: Yes | K42: pathogenic | L42: predicted pathogenic | M42: ClinVar
A43: GATA3 | B43: c.1262C>T | C43: (p.Thr421Met) | D43: 0.979 | E43: probably damaging | F43: 0.001 | G43: damaging | H43: disease causing | I43: ✽ | J43: Yes | K43: likely pathogenic | L43: predicted pathogenic | M43: ClinVar
A44: GATA3 | B44: c.766C>G | C44: p.Arg256Gly | D44: 0.686 | E44: possibly damaging | F44: 0.002, 0.001 | G44: damaging | H44: disease causing | I44: ✽ | J44: Yes | K44: pathogenic | L44: predicted benign | M44: LOVD
A45: GATA3 | B45: c.784A>G | C45: p.Arg262Gly | D45: 0.911 | E45: probably damaging (ensembl) | F45: 0 | G45: damaging | H45: disease causing | I45: ✽ | J45: Yes | K45: pathogenic | L45: predicted benign | M45: LOVD
A46: GATA3 | B46: c.790T>A | C46: p.Cys264Ser | D46: 1 | E46: probably damaging (ensembl) | F46: 0, 0 | G46: damaging, damaging | H46: disease causing | I46: ✽ | J46: Yes | K46: DM | L46: predicted pathogenic | M46: HGMD
A47: GATA3 | B47: c.790T>A | C47: (p.Cys264Ser) | D47: 1 | E47: probably damaging (ensembl) | F47: 0 | G47: damaging | H47: disease causing | I47: ✽ | J47: Yes | K47: pathogenic | L47: predicted pathogenic | M47: ClinVar
A48: GATA3 | B48: c.815C>T | C48: p.Thr272Ile | D48: 0.998 | E48: probably damaging (ensembl) | F48: 0 | G48: damaging | H48: disease causing | I48: ✽ | J48: Yes | K48: pathogenic | L48: predicted pathogenic | M48: LOVD
A49: GATA3 | B49: c.815C>T | C49: (p.Thr272Ile) | D49: 0.998 | E49: probably damaging (ensembl) | F49: 0 | G49: damaging | H49: disease causing | I49: ✽ | J49: Yes | K49: pathogenic | L49: predicted pathogenic | M49: ClinVar
A50: GATA3 | B50: c.823T>A | C50: (p.Trp275Arg) | D50: 0.999 | E50: probably damaging (ensembl) | F50: 0 | G50: damaging | H50: disease causing | I50: ✽ | J50: Yes | K50: pathogenic | L50: predicted pathogenic | M50: ClinVar
A51: GATA3 | B51: c.824G>T | C51: p.Trp275Leu | D51: 0.99 | E51: probably damaging (ensembl) | F51: 0 | G51: damaging | H51: disease causing | I51: ✽ | J51: Yes | K51: pathogenic | L51: predicted pathogenic | M51: LOVD
A52: GATA3 | B52: c.826C>T | C52: (p.Arg276Trp) | D52: 1 | E52: probably damaging | F52: 0 | G52: damaging | H52: disease causing | I52: ✽ | J52: Yes | K52: likely pathogenic | L52: predicted pathogenic | M52: ClinVar
A53: GATA3 | B53: c.827G>A | C53: p.Arg276Gln | D53: 1 | E53: probably damaging | F53: 0, 0 | G53: damaging, damaging | H53: disease causing | I53: ✽ | J53: Yes | K53: DM | L53: predicted pathogenic | M53: HGMD
A54: GATA3 | B54: c.827G>C | C54: p.Arg276Pro | D54: 1 | E54: probably damaging | F54: 0 | G54: damaging | H54: disease causing | I54: ✽ | J54: Yes | K54: pathogenic | L54: predicted pathogenic | M54: LOVD
A55: GATA3 | B55: c.832G>A | C55: p.Asp278Asn | D55: 1 | E55: probably damaging (ensembl) | F55: 0, 0 | G55: damaging, damaging | H55: disease causing | I55: ✽ | J55: Yes | K55: DM | L55: predicted pathogenic | M55: HGMD
A56: GATA3 | B56: c.832G>A | C56: (p.Asp278Asn) | D56: 1 | E56: probably damaging (ensembl) | F56: 0.009 | G56: damaging | H56: disease causing | I56: ✽ | J56: Yes | K56: pathogenic | L56: predicted pathogenic | M56: ClinVar
A57: GATA3 | B57: c.851T>G | C57: p.Leu284Arg | D57: 0.999 | E57: probably damaging (ensembl) | F57: 0, 0 | G57: damaging, damaging | H57: disease causing | I57: ✽ | J57: Yes | K57: DM | L57: predicted pathogenic | M57: HGMD
A58: GATA3 | B58: c.856A>G | C58: p.Asn286Asp | D58: 0.895 | E58: possibly damaging (ensembl) | F58: 0.008, 0.008 | G58: damaging, damaging | H58: disease causing | I58: ✽ | J58: Yes | K58: DM | L58: predicted benign | M58: HGMD
A59: GATA3 | B59: c.859G>A | C59: p.Ala287Thr | D59: 0.895 | E59: possibly damaging (ensembl) | F59: 0.001 | G59: damaging | H59: disease causing | I59: ✽ | J59: Yes | K59: likely pathogenic | L59: predicted benign | M59: LOVD
A60: GATA3 | B60: c.864C>G | C60: p.Cys288Trp | D60: 1 | E60: probably damaging (ensembl) | F60: 0, 0 | G60: damaging, damaging | H60: disease causing | I60: ✽ | J60: Yes | K60: DM | L60: predicted pathogenic | M60: HGMD
A61: GATA3 | B61: c.864C>G | C61: (p.Cys288Trp) | D61: 1 | E61: probably damaging (ensembl) | F61: 0 | G61: damaging | H61: disease causing | I61: ✽ | J61: Yes | K61: pathogenic | L61: predicted pathogenic | M61: ClinVar
A62: GATA3 | B62: c.865G>A | C62: p.Gly289Arg | D62: 1 | E62: probably damaging (ensembl) | F62: 0 | G62: damaging | H62: disease causing | I62: ✽ | J62: Yes | K62: pathogenic | L62: predicted pathogenic | M62: LOVD
A63: GATA3 | B63: c.866G>A | C63: p.Gly289Glu | D63: 0.999 | E63: probably damaging (ensembl) | F63: 0, 0 | G63: damaging, damaging | H63: disease causing | I63: ✽ | J63: Yes | K63: DM | L63: predicted pathogenic | M63: HGMD
A64: GATA3 | B64: c.881T>G | C64: p.Met294Arg | D64: 0.965 | E64: probably damaging (ensembl) | F64: 0.001, 0.001 | G64: damaging, damaging | H64: disease causing | I64: ✽ | J64: Yes | K64: DM | L64: predicted pathogenic | M64: HGMD
A65: GATA3 | B65: c.889C>A | C65: p.Gln297Lys | D65: 0.449 | E65: possibly damaging (ensembl) | F65: 0.001 | G65: damaging | H65: disease causing | I65: ✽ | J65: Yes | K65: pathogenic | L65: predicted benign | M65: LOVD
A66: GATA3 | B66: c.895C>T | C66: (p.Arg299Trp) | D66: 0.999 | E66: probably damaging (ensembl) | F66: 0 | G66: damaging | H66: disease causing | I66: ✽ | J66: Yes | K66: likely pathogenic | L66: predicted pathogenic | M66: ClinVar
A67: GATA3 | B67: c.896G>A | C67: p.Arg299Gln | D67: 0.994 | E67: probably damaging (ensembl) | F67: 0.017, 0.017 | G67: damaging, damaging | H67: disease causing | I67: ✽ | J67: Yes | K67: DM | L67: predicted pathogenic | M67: HGMD
A68: GATA3 | B68: c.896G>A | C68: (p.Arg299Gln) | D68: 0.994 | E68: probably damaging (ensembl) | F68: 0 | G68: damaging | H68: disease causing | I68: ✽ | J68: Yes | K68: pathogenic | L68: predicted pathogenic | M68: ClinVar
A69: GATA3 | B69: c.896G>T | C69: (p.Arg299Leu) | D69: 0.987 | E69: probably damaging (ensembl) | F69: 0 | G69: damaging | H69: disease causing | I69: ✽ | J69: Yes | K69: pathogenic | L69: predicted pathogenic | M69: ClinVar
A70: GATA3 | B70: c.905T>C | C70: p.Ile302Thr | D70: 0.994 | E70: probably damaging (ensembl) | F70: 0, 0 | G70: damaging, damaging | H70: disease causing | I70: ✽ | J70: Yes | K70: DM | L70: predicted pathogenic | M70: HGMD
A71: GATA3 | B71: c.952T>A | C71: p.Cys318Ser | D71: 1 | E71: probably damaging (ensembl) | F71: 0 | G71: damaging | H71: disease causing | I71: ✽ | J71: Yes | K71: pathogenic | L71: predicted pathogenic | M71: LOVD
A72: GATA3 | B72: c.952T>C | C72: p.Cys318Arg | D72: 1 | E72: probably damaging (ensembl) | F72: 0 | G72: damaging | H72: disease causing | I72: ✽ | J72: Yes | K72: pathogenic | L72: predicted pathogenic | M72: LOVD
A73: GATA3 | B73: c.953G>A | C73: p.Cys318Tyr | D73: 1 | E73: probably damaging (ensembl) | F73: 0 | G73: damaging | H73: disease causing | I73: ✽ | J73: Yes | K73: pathogenic | L73: predicted pathogenic | M73: LOVD
A74: GATA3 | B74: c.959A>G | C74: (p.Asn320Ser) | D74: 1 | E74: probably damaging (ensembl) | F74: 0 | G74: damaging | H74: disease causing | I74: ✽ | J74: Yes | K74: likely pathogenic | L74: predicted pathogenic | M74: ClinVar
A75: GATA3 | B75: c.960C>A | C75: p.Asn320Lys | D75: 1 | E75: probably damaging (ensembl) | F75: 0 | G75: damaging | H75: disease causing | I75: ✽ | J75: Yes | K75: pathogenic | L75: predicted pathogenic | M75: LOVD
A76: GATA3 | B76: c.961T>A | C76: (p.Cys321Ser) | D76: 1 | E76: probably damaging (ensembl) | F76: 0 | G76: damaging | H76: disease causing | I76: ✽ | J76: Yes | K76: pathogenic | L76: predicted pathogenic | M76: ClinVar

Sheet PBX1 calculations
A1: ClinVar | B1: +ve | C1: -ve | G1: LOVD | H1: +ve | I1: -ve | M1: HGMD | N1: +ve | O1: -ve | S1: allele count >30 | T1: +ve | U1: -ve
A2: +ve | B2: 10 | C2: 0 | D2: =SUM(B2:C2) -> 10 | G2: +ve | H2: 1 | I2: 0 | J2: =SUM(H2:I2) -> 1 | M2: +ve | N2: 2 | O2: 0 | P2: =SUM(N2:O2) -> 2 | S2: +ve | T2: 0 | U2: 0 | V2: =SUM(T2:U2) -> 0
A3: -ve | B3: 3 | C3: 2 | D3: =SUM(B3:C3) -> 5 | G3: -ve | H3: 0 | I3: 0 | J3: =SUM(H3:I3) -> 0 | M3: -ve | N3: 2 | O3: 0 | P3: =SUM(N3:O3) -> 2 | S3: -ve | T3: 0 | U3: 2 | V3: =SUM(T3:U3) -> 2
A4: total | B4: 13 | C4: 2 | D4: 15 | G4: total | H4: 1 | I4: 0 | J4: 1 | M4: total | N4: 4 | O4: 0 | P4: 4 | S4: total | T4: =SUM(T2:T3) -> 0 | U4: =SUM(U2:U3) -> 2 | V4: 2
B6: sensitivity | C6: =B2/B4*100 -> 77 | H6: sensitivity | I6: =H2/H4*100 -> 100 | N6: sensitivity | O6: =N2/N4*100 -> 50 | T6: sensitivity | U6: =T2/T4*100 -> 
B7: specificity | C7: =C3/C4*100 -> 100 | H7: specificity | I7: =I3/I4*100 ->  | N7: specificity | O7: =O3/O4*100 ->  | T7: specificity | U7: =U3/U4*100 -> 100
B8: PPV | C8: =B2/D2*100 -> 100 | H8: PPV | I8: =H2/J2*100 -> 100 | N8: PPV | O8: =N2/P2*100 -> 100 | T8: PPV | U8: =T2/V2*100 -> 
B9: NPV | C9: =C3/D3*100 -> 40 | H9: NPV | I9: =I3/J3*100 ->  | N9: NPV | O9: =O3/P3*100 -> 0 | T9: NPV | U9: =U3/V3*100 -> 100
J12: All | K12: +ve | L12: -ve
J13: +ve | K13: =SUM(B2,H2,N2,T2) -> 13 | L13: 0 | M13: =SUM(K13:L13) -> 13
J14: -ve | K14: 5 | L14: 4 | M14: =SUM(K14:L14) -> 9
J15: total | K15: 18 | L15: 4 | M15: 22
K17: sensitivity | L17: =K13/K15*100 -> 72
K18: specificity | L18: =L14/L15*100 -> 100
K19: PPV | L19: =K13/M13*100 -> 100
K20: NPV | L20: =L14/M14*100 -> 44
A23: BENIGN VARIANTS
A24: Gene | B24: c.DNA | C24: p.change | D24: PP2 SCORE | E24: PP2 PREDICTION | F24: SIFT4G SCORE (VARSOME) | G24: SIFT4G PREDICTION (VARSOME) | H24: MT | I24: Conservation | J24: Conservation conclusion | K24: Database classification | L24: OUR CONCLUSION | M24: DATABASE
A25: PBX1 | B25: c.187G>T | C25: (p.Ala63Ser) | D25: 0.553 | E25: possibly damaging | F25: 0.048, 0.062, 0.055 | G25: tolerated, damaging | H25: disease causing | I25: ✽ | J25: Yes | K25: likely benign | L25: predicted benign | M25: ClinVar
A26: PBX1 | B26: c.197A>G | C26: p.Tyr66Cys | D26: 0.051 | E26: benign | F26: 0.002 | G26: damaging | H26: D | K26: presumed benign | L26: predicted benign | M26: gnomAD allele count >30
A27: PBX1 | B27: c.61G>A | C27: p.Gly21Ser | D27: 0.025 | E27: B | F27: 0.118 | G27: T | H27: P | I27: ✽ | J27: Yes | K27: presumed benign | L27: predicted benign | M27: gnomAD allele count >30
A28: PBX1 | B28: c.92G>T | C28: (p.Gly31Val) | D28: 0.005 | E28: benign | F28: 0.152, 0.212, 0.155, 0.104 | G28: tolerated | H28: disease causing | I28: ✽ | J28: Yes | K28: likely benign | L28: predicted benign | M28: ClinVar
A31: PATHOGENIC VARIANTS
A32: Gene | B32: c.DNA | C32: p.change | D32: PP2 SCORE | E32: PP2 PREDICTION | F32: SIFT4G SCORE (VARSOME) | G32: SIFT4G PREDICTION (VARSOME) | H32: MT | I32: Conservation | J32: Conservation conclusion | K32: Database classification | L32: OUR CONCLUSION | M32: DATABASE
A33: PBX1 | B33: c.319C>T | C33: p.R107W | D33: 0.999 | E33: probably damaging | F33: 0.03 | G33: deleterious | H33: benign | I33: ✽ | J33: yes | K33: DM | L33: predicted benign | M33: HGMD
A34: PBX1 | B34: c.320G>A | C34: (p.Arg107Gln) | D34: 1 | E34: probably damaging | F34: 0.001, 0 | G34: damaging | H34: disease causing | I34: ✽ | J34: Yes | K34: likely pathogenic | L34: predicted pathogenic | M34: ClinVar
A35: PBX1 | B35: c.320G>C | C35: (p.Arg107Pro) | D35: 1 | E35: probably damaging | F35: 0.001, 0 | G35: damaging | H35: disease causing | I35: ✽ | J35: Yes | K35: likely pathogenic | L35: predicted pathogenic | M35: ClinVar
A36: PBX1 | B36: c.551G>C | C36: p.R184P | D36: 0.995 | E36: probably damaging | F36: 0 | G36: deleterious | H36: deleterious | I36: ✽ | J36: yes | K36: DM | L36: predicted pathogenic | M36: HGMD
A37: PBX1 | B37: c.671T>A | C37: p.M224K | D37: 0.906 | E37: possibly damaging | F37: 0.04 | G37: deleterious | H37: deleterious | I37: ✽ | J37: yes | K37: DM | L37: predicted benign | M37: HGMD
A38: PBX1 | B38: c.680G>C | C38: (p.Arg227Pro) | D38: 0.999 | E38: probably damaging | F38: 0.001, 0 | G38: damaging | H38: disease causing | I38: ✽ | J38: Yes | K38: pathogenic | L38: predicted pathogenic | M38: ClinVar
A39: PBX1 | B39: c.700C>T | C39: p.R234W | D39: 1 | E39: probably damaging | F39: 0.03 | G39: deleterious | H39: deleterious | I39: ✽ | J39: yes | K39: DM | L39: predicted pathogenic | M39: HGMD
A40: PBX1 | B40: c.701G>A | C40: (p.Arg234Gln) | D40: 1 | E40: probably damaging | F40: 0.001, 0 | G40: damaging | H40: disease causing | I40: ✽ | J40: Yes | K40: likely pathogenic | L40: predicted pathogenic | M40: ClinVar
A41: PBX1 | B41: c.701G>C | C41: (p.Arg234Pro) | D41: 1 | E41: probably damaging | F41: 0.002, 0, 0.004 | G41: damaging | H41: disease causing | I41: ✽ | J41: Yes | K41: likely pathogenic | L41: predicted pathogenic | M41: ClinVar
A42: PBX1 | B42: c.703C>T | C42: (p.Arg235Trp) | D42: 0.598 | E42: possibly damaging | F42: 0 | G42: damaging | H42: disease causing | I42: ✽ | J42: Yes | K42: likely pathogenic | L42: predicted benign | M42: ClinVar
A43: PBX1 | B43: c.704G>A | C43: (p.Arg235Gln) | D43: 0.996 | E43: probably damaging | F43: 0.001, 0.002 | G43: damaging | H43: disease causing | I43: ✽ | J43: Yes | K43: pathogenic | L43: predicted pathogenic | M43: ClinVar
A44: PBX1 | B44: c.704G>T | C44: p.(Arg235Leu) | D44: 0.983 | E44: probably damaging | F44: 0.001 | G44: damaging | H44: disease causing | I44: ✽ | J44: Yes | K44: pathogenic | L44: predicted pathogenic | M44: LOVD
A45: PBX1 | B45: c.758A>C | C45: (p.Tyr253Ser) | D45: 0.881 | E45: possibly damaging | F45: 0.004, 0.003 | G45: damaging | H45: disease causing | I45: ✽ | J45: Yes | K45: likely pathogenic | L45: predicted benign | M45: ClinVar
A46: PBX1 | B46: c.760T>C | C46: (p.Ser254Pro) | D46: 0.997 | E46: probably damaging | F46: 0.001 | G46: damaging | H46: disease causing | I46: ✽ | J46: Yes | K46: likely pathogenic | L46: predicted pathogenic | M46: ClinVar
A47: PBX1 | B47: c.817T>C | C47: (p.Cys273Arg) | D47: 0.431 | E47: benign | F47: 0.002, 0.001 | G47: damaging | H47: disease causing | I47: ✽ | J47: Yes | K47: likely pathogenic | L47: predicted benign | M47: ClinVar
A48: PBX1 | B48: c.818G>A | C48: (p.Cys273Tyr) | D48: 0.998 | E48: probably damaging | F48: 0.001, 0 | G48: damaging | H48: disease causing | I48: ✽ | J48: Yes | K48: likely pathogenic | L48: predicted pathogenic | M48: ClinVar
A49: PBX1 | B49: c.836A>G | C49: (p.Gln279Arg) | D49: 1 | E49: probably damaging | F49: 0 | G49: damaging | H49: disease causing | I49: ✽ | J49: Yes | K49: likely pathogenic | L49: predicted pathogenic | M49: ClinVar
A50: PBX1 | B50: c.868C>T | C50: (p.Arg290Trp) | D50: 1 | E50: probably damaging | F50: 0 | G50: damaging | H50: disease causing | I50: ✽ | J50: Yes | K50: pathogenic | L50: predicted pathogenic | M50: ClinVar

Sheet EYA1 calculations
A1: ClinVar | B1: +ve | C1: -ve | G1: LOVD | H1: +ve | I1: -ve | M1: HGMD | N1: +ve | O1: -ve | S1: allele count >30 | T1: +ve | U1: -ve
A2: +ve | B2: 11 | C2: 1 | D2: =SUM(B2:C2) -> 12 | G2: +ve | H2: 12 | I2: 0 | J2: =SUM(H2:I2) -> 12 | M2: +ve | N2: 2 | O2: 0 | P2: =SUM(N2:O2) -> 2 | S2: +ve | T2: 0 | V2: =SUM(T2:U2) -> 0
A3: -ve | B3: 4 | C3: 7 | D3: =SUM(B3:C3) -> 11 | G3: -ve | H3: 3 | I3: 1 | J3: =SUM(H3:I3) -> 4 | M3: -ve | N3: 1 | O3: 0 | P3: =SUM(N3:O3) -> 1 | S3: -ve | T3: 0 | U3: 9 | V3: =SUM(T3:U3) -> 9
A4: total | B4: 15 | C4: 8 | D4: 23 | G4: total | H4: 15 | I4: 1 | J4: 16 | M4: total | N4: =SUM(N2:N3) -> 3 | O4: =SUM(O2:O3) -> 0 | P4: 3 | S4: total | T4: =SUM(T2:T3) -> 0 | U4: =SUM(U2:U3) -> 9 | V4: 9
B6: sensitivity | C6: =B2/B4*100 -> 73 | H6: sensitivity | I6: =H2/H4*100 -> 80 | N6: sensitivity | O6: =N2/N4*100 -> 67 | T6: sensitivity | U6: =T2/T4*100 -> 
B7: specificity | C7: =C3/C4*100 -> 88 | H7: specificity | I7: =I3/I4*100 -> 100 | N7: specificity | O7: =O3/O4*100 ->  | T7: specificity | U7: =U3/U4*100 -> 100
B8: PPV | C8: =B2/D2*100 -> 92 | H8: PPV | I8: =H2/J2*100 -> 100 | N8: PPV | O8: =N2/P2*100 -> 100 | T8: PPV | U8: =T2/V2*100 -> 
B9: NPV | C9: =C3/D3*100 -> 64 | H9: NPV | I9: =I3/J3*100 -> 25 | N9: NPV | O9: =O3/P3*100 -> 0 | T9: NPV | U9: =U3/V3*100 -> 100
J12: All | K12: +ve | L12: -ve
J13: +ve | K13: =SUM(B2,H2,N2,T2) -> 25 | L13: 1 | M13: =SUM(K13:L13) -> 26
J14: -ve | K14: 8 | L14: 17 | M14: =SUM(K14:L14) -> 25
J15: total | K15: 33 | L15: 18 | M15: 51
K17: sensitivity | L17: =K13/K15*100 -> 76
K18: specificity | L18: =L14/L15*100 -> 94
K19: PPV | L19: =K13/M13*100 -> 96
K20: NPV | L20: =L14/M14*100 -> 68
A23: BENIGN VARIANTS
A24: Gene | B24: c.DNA | C24: p.change | D24: PP2 SCORE | E24: PP2 PREDICTION | F24: SIFT4G SCORE (VARSOME) | G24: SIFT4G PREDICTION (VARSOME) | H24: MT | I24: Conservation | J24: Conservation conclusion | K24: Database classification | L24: OUR CONCLUSION | M24: DATABASE
A25: EYA1 | B25: c.107C>T | C25: p.Thr36Ile | D25: 0.019 | E25: B | F25: 0.049 | G25: D | H25: D | I25: ✽ | J25: Yes | K25: presumed benign | L25: predicted benign | M25: gnomAD allele count >30
A26: EYA1 | B26: c.121G>C | C26: p.Glu41Gln | D26: 0.956 | E26: D | F26: 0.536 | G26: T | H26: D | I26: ✽ | J26: Yes | K26: presumed benign | L26: predicted benign | M26: gnomAD allele count >30
A27: EYA1 | B27: c.1276G>A | C27: p.Gly426Ser | D27: 0.418 | E27: B | F27: 0.008 | G27: D | H27: A | I27: ✽ | J27: Yes | K27: presumed benign | L27: predicted benign | M27: gnomAD allele count >30
A28: EYA1 | B28: c.1460C>T | C28: p.Ser487Leu | D28: 0.038 | E28: B | F28: 0.276 | G28: T | H28: D | J28: No | K28: presumed benign | L28: predicted benign | M28: gnomAD allele count >30
A29: EYA1 | B29: c.1505C>G | C29: (p.Thr502Ser) | D29: 0.989 | E29: probably damaging | F29: 0.148, 0.209, 0.195, 0.204, 0.133, 0.0134 | G29: tolerated | H29: disease causing | I29: ✽ | J29: Yes | K29: likely benign | L29: predicted benign | M29: ClinVar
A30: EYA1 | B30: c.164C>T | C30: p.Thr55Met | D30: 0.657 | E30: P | F30: 0.058 | G30: T | H30: D | I30: ✽ | J30: Yes | K30: presumed benign | L30: predicted benign | M30: gnomAD allele count >30
A31: EYA1 | B31: c.1701C>A | C31: (p.His567Gln) | D31: 0.905 | E31: possibly damaging | F31: 0.066, 0.076, 0.08, 0.071, 0.074 | G31: tolerated | H31: disease causing | I31: ✽ | J31: Yes | K31: likely benign | L31: predicted benign | M31: ClinVar
A32: EYA1 | B32: c.35G>A | C32: p.Arg12His | D32: 0.706 | E32: P | F32: 0.128 | G32: T | H32: D | I32: ✽ | J32: Yes | K32: presumed benign | L32: predicted benign | M32: gnomAD allele count >30
A33: EYA1 | B33: c.58C>G | C33: (p.Pro20Ala) | D33: 0.167 | E33: benign | F33: 0.011 | G33: damaging | H33: polymorphism | I33: ✽ | J33: Yes | K33: benign | L33: predicted benign | M33: ClinVar
A34: EYA1 | B34: c.724A>G | C34: (p.Ser242Gly) | D34: 0.091 | E34: benign | F34: 0.099, 0.058, 0.082, 0.085, 0.101, 0.089 | G34: tolerated | H34: disease causing | J34: No | K34: benign | L34: predicted benign | M34: ClinVar
A35: EYA1 | B35: c.743C>T | C35: (p.Thr248Met) | D35: 0.983 | E35: probably damaging | F35: 0.058, 0.052, 0.019, 0.021, 0.02 | G35: tolerated, damaging | H35: disease causing | I35: ✽ | J35: Yes | K35: likely benign | L35: predicted benign | M35: ClinVar
A36: EYA1 | B36: c.782C>T | C36: (p.Pro261Leu) | D36: 1 | E36: probably damaging | F36: 0.202, 0.201, 0.197, 0.2, 0.203 | G36: tolerated | H36: disease causing | I36: ✽ | J36: Yes | K36: benign | L36: predicted benign | M36: ClinVar
A37: EYA1 | B37: c.805G>A | C37: p.Ala269Thr | D37: 0.999 | E37: probably damaging | F37: 0.176, 0.168, 0.16, 0.161, 0.151, 0.192 | G37: tolerated | H37: disease causing | I37: ✽ | J37: Yes | K37: likely benign | L37: predicted benign | M37: LOVD
A38: EYA1 | B38: c.865G>T | C38: p.Asp289Tyr | D38: 0.897 | E38: P | F38: 0.019 | G38: D | H38: D | J38: No | K38: presumed benign | L38: predicted benign | M38: gnomAD allele count >30
A39: EYA1 | B39: c.884T>C | C39: p.Leu295Ser | D39: 0.518 | E39: P | F39: 0.751 | G39: T | H39: D | I39: ✽ | J39: Yes | K39: presumed benign | L39: predicted benign | M39: gnomAD allele count >30
A40: EYA1 | B40: c.887G>A | C40: (p.Arg296His) | D40: 0.999 | E40: probably damaging | F40: 0.241, 0.253, 0.247, 0.245, 0.248, 0.254 | G40: tolerated | H40: disease causing | I40: ✽ | J40: Yes | K40: benign | L40: predicted benign | M40: ClinVar
A41: EYA1 | B41: c.890G>A | C41: p.Arg297Gln | D41: 0.592 | E41: P | F41: 0.075 | G41: T | H41: D | I41: ✽ | J41: Yes | K41: presumed benign | L41: predicted benign | M41: gnomAD allele count >30
A42: EYA1 | B42: c.923G>A | C42: (p.Arg308Gln) | D42: 0.999 | E42: probably damaging | F42: 0.009, 0.01, 0.007, 0.008 | G42: damaging | H42: disease causing | I42: ✽ | J42: Yes | K42: benign/likely benign | L42: predicted pathogenic | M42: ClinVar
A45: PATHOGENIC VARIANTS
A46: Gene | B46: c.DNA | C46: p.change | D46: PP2 SCORE | E46: PP2 PREDICTION | F46: SIFT4G SCORE (VARSOME) | G46: SIFT4G PREDICTION (VARSOME) | H46: MT | I46: Conservation | J46: Conservation conclusion | K46: Database classification | L46: OUR CONCLUSION | M46: DATABASE
A47: EYA1 | B47: c.1051G>T | C47: (p.Asp351Tyr) | D47: 0.994 | E47: probably damaging | F47: 0 | G47: damaging | H47: disease causing | I47: ✽ | J47: Yes | K47: likely pathogenic | L47: predicted pathogenic | M47: ClinVar
A48: EYA1 | B48: c.1087G>A | C48: (p.Glu363Lys) | D48: 0.993 | E48: probably damaging | F48: 0.001, 0 | G48: damaging | H48: disease causing | I48: ✽ | J48: Yes | K48: pathogenic | L48: predicted pathogenic | M48: ClinVar
A49: EYA1 | B49: c.1088A>T | C49: p.Glu363Val | D49: 0.991 | E49: probably damaging | F49: 0 | G49: damaging | H49: disease causing | I49: ✽ | J49: Yes | K49: pathogenic | L49: predicted pathogenic | M49: LOVD
A50: EYA1 | B50: c.1309C>T | C50: (p.Arg437Cys) | D50: 1 | E50: probably damaging | F50: 0 | G50: damaging | H50: disease causing | I50: ✽ | J50: Yes | K50: likely pathogenic | L50: predicted pathogenic | M50: ClinVar
A51: EYA1 | B51: c.1319G>A | C51: (p.Arg440Gln) | D51: 1 | E51: probably damaging | F51: 0.006, 0.007, 0.005, 0.004 | G51: damaging | H51: disease causing | I51: ✽ | J51: Yes | K51: pathogenic/likely pathogenic | L51: predicted pathogenic | M51: ClinVar
A52: EYA1 | B52: c.1448T>C | C52: (p.Leu483Pro) | D52: 1 | E52: probably damaging | F52: 0.001, 0.002, 0.003 | G52: damaging | H52: disease causing | I52: ✽ | J52: Yes | K52: likely pathogenic | L52: predicted pathogenic | M52: ClinVar
A53: EYA1 | B53: c.1459T>C | C53: (p.Ser487Pro) | D53: 0.214 | E53: benign | F53: 0.093, 0.122, 0.115, 0.102, 0.1, 0.091 | G53: tolerated | H53: disease causing | J53: No | K53: pathogenic | L53: predicted benign | M53: ClinVar
A54: EYA1 | B54: c.1475G>C | C54: p.Arg492Pro | D54: 1 | E54: probably damaging | F54: 0, 0.013, 0.007, 0.006, 0.011, 0.01 | G54: damaging | H54: disease causing | I54: ✽ | J54: Yes | K54: pathogenic | L54: predicted pathogenic | M54: LOVD
A55: EYA1 | B55: c.1483T>A | C55: (p.Cys495Ser) | D55: 1 | E55: probably damaging | F55: 0.079, 0.095, 0.099, 0.084, 0.077, 0.078 | G55: tolerated | H55: disease causing | I55: ✽ | J55: Yes | K55: likely pathogenic | L55: predicted benign | M55: ClinVar
A56: EYA1 | B56: c.1514T>G | C56: p.Leu505Arg | D56: 0.998 | E56: probably damaging | F56: 0 | G56: damaging | H56: disease causing | I56: ✽ | J56: Yes | K56: pathogenic | L56: predicted pathogenic | M56: LOVD
A57: EYA1 | B57: c.1534G>T | C57: p.Val512Phe | D57: 0.999 | E57: probably damaging | F57: 0.001 | G57: damaging | H57: disease causing | I57: ✽ | J57: Yes | K57: pathogenic | L57: predicted pathogenic | M57: LOVD
A58: EYA1 | B58: c.1537C>A | C58: (p.Leu513Met) | D58: 0.986 | E58: probably damaging | F58: 0.046, 0.035, 0.054, 0.04, 0.037, 0.029 | G58: tolerated, damaging | H58: disease causing | I58: ✽ | J58: Yes | K58: likely pathogenic | L58: predicted benign | M58: ClinVar
A59: EYA1 | B59: c.1538T>C | C59: p.Leu513Pro | D59: 1 | E59: probably damaging | F59: 0 | G59: damaging | H59: disease causing | I59: ✽ | J59: Yes | K59: pathogenic | L59: predicted pathogenic | M59: LOVD
A60: EYA1 | B60: c.1541T>C | C60: p.Leu514Pro | D60: 1 | E60: probably damaging | F60: 0 | G60: damaging | H60: disease causing | I60: ✽ | J60: Yes | K60: pathogenic | L60: predicted pathogenic | M60: LOVD
A61: EYA1 | B61: c.1579T>A | C61: (p.Tyr527Asn) | D61: 1 | E61: probably damaging | F61: 0 | G61: damaging | H61: disease causing | I61: ✽ | J61: Yes | K61: likely pathogenic | L61: predicted pathogenic | M61: ClinVar
A62: EYA1 | B62: c.1580A>G | C62: p.Tyr527Cys | D62: 1 | E62: probably damaging | F62: 0 | G62: damaging | H62: disease causing | I62: ✽ | J62: Yes | K62: pathogenic | L62: predicted pathogenic | M62: LOVD
A63: EYA1 | B63: c.1597G>A | C63: p.Gly533Arg | D63: 0.999 | E63: probably damaging | F63: 0 | G63: damaging | H63: disease causing | I63: ✽ | J63: Yes | K63: pathogenic | L63: predicted pathogenic | M63: LOVD
A64: EYA1 | B64: c.1597G>C | C64: (p.Gly533Arg) | D64: 0.999 | E64: probably damaging | F64: 0 | G64: damaging | H64: disease causing | I64: ✽ | J64: Yes | K64: pathogenic | L64: predicted pathogenic | M64: ClinVar
A65: EYA1 | B65: c.1639A>G | C65: (p.Arg547Gly) | D65: 1 | E65: probably damaging | F65: 0.025, 0.002, 0.032, 0.024, 0.019, 0.018 | G65: damaging | H65: disease causing | I65: ✽ | J65: Yes | K65: pathogenic | L65: predicted pathogenic | M65: ClinVar
A66: EYA1 | B66: c.1649T>A | C66: p.Val550Glu | D66: 1 | E66: probably damaging | F66: 0.01, 0.006, 0.007, 0.004 | G66: damaging | H66: disease causing | I66: ✽ | J66: Yes | K66: pathogenic | L66: predicted pathogenic | M66: LOVD
A67: EYA1 | B67: c.1706T>C | C67: p.Met569Thr | D67: 0.6 | E67: possibly damaging | F67: 0.002, 0.003 | G67: damaging | H67: disease causing | I67: ✽ | J67: Yes | K67: pathogenic | L67: predicted benign | M67: LOVD
A68: EYA1 | B68: c.1733C>T | C68: p.Ser578Leu | D68: 0.984 | E68: probably damaging | F68: 0.002, 0.002, 0.002, 0.002, 0.002, 0.002, 0.002 | G68: damaging, damaging, damaging, damaging, damaging, damaging, damaging | H68: disease causing | I68: ✽ | J68: Yes | K68: DM | L68: predicted pathogenic | M68: HGMD
A69: EYA1 | B69: c.1739T>G | C69: (p.Leu580Arg) | D69: 0.999 | E69: probably damaging | F69: 0 | G69: damaging | H69: disease causing | I69: ✽ | J69: Yes | K69: likely pathogenic | L69: predicted pathogenic | M69: ClinVar
A70: EYA1 | B70: c.1748T>C | C70: (p.Leu583Pro) | D70: 1 | E70: probably damaging | F70: 0 | G70: damaging | H70: disease causing | I70: ✽ | J70: Yes | K70: likely pathogenic | L70: predicted pathogenic | M70: ClinVar
A71: EYA1 | B71: c.283C>T | C71: p.Pro95Ser | D71: 1 | E71: probably damaging | F71: 0.019, 0.018, 0.006, 0.008, 0.02 | G71: damaging | H71: disease causing | I71: ✽ | J71: Yes | K71: pathogenic | L71: predicted pathogenic | M71: LOVD
A72: EYA1 | B72: c.403G>A | C72: p.Gly135Ser | D72: 1 | E72: probably damaging | F72: 0.364, 0.364, 0.318, 0.295, 0.354, 0.281, 0.354 | G72: tolerated, tolerated, tolerated, tolerated, tolerated, tolerated, tolerated | H72: disease causing | I72: ✽ | J72: Yes | K72: DM | L72: predicted benign | M72: HGMD
A73: EYA1 | B73: c.418G>A | C73: p.Gly140Ser | D73: 0.987 | E73: probably damaging | F73: 0.23, 0.305, 0.249, 0.243, 0.242, 0.299 | G73: tolerated | H73: disease causing | I73: ✽ | J73: Yes | K73: pathogenic | L73: predicted benign | M73: LOVD
A74: EYA1 | B74: c.638A>T | C74: p.Gln213Leu | D74: 0.997 | E74: probably damaging | F74: 0.054, 0.62, 0.048, 0.056, 0.045, 0.064 | G74: tolerated, damaging | H74: disease causing | I74: ✽ | J74: Yes | K74: pathogenic | L74: predicted benign | M74: LOVD
A75: EYA1 | B75: c.639G>C | C75: p.Gln213His | D75: 0.997 | E75: probably damaging | F75: 0.009, 0.009, 0.012, 0.019, 0.011, 0.025, 0.009 | G75: damaging, damaging, damaging, damaging, damaging, damaging, damaging | H75: disease causing | I75: ✽ | J75: Yes | K75: DM | L75: predicted pathogenic | M75: HGMD
A76: EYA1 | B76: c.640G>A | C76: (p.Asp214Asn) | D76: 0.527 | E76: possibly damaging | F76: 0.002, 0.001 | G76: damaging | H76: disease causing | J76: No | K76: likely pathogenic | L76: predicted benign | M76: ClinVar
A77: EYA1 | B77: c.965A>G | C77: p.Glu322Gly | D77: 0.998 | E77: probably damaging | F77: 0 | G77: damaging | H77: disease causing | I77: ✽ | J77: Yes | K77: pathogenic | L77: predicted pathogenic | M77: LOVD
A78: EYA1 | B78: c.977T>A | C78: p.Ile326Asn | D78: 0.996 | E78: probably damaging | F78: 0 | G78: damaging | H78: disease causing | I78: ✽ | J78: Yes | K78: pathogenic | L78: predicted pathogenic | M78: LOVD
A79: EYA1 | B79: c.979T>C | C79: (p.Trp327Arg) | D79: 1 | E79: probably damaging | F79: 0.001, 0 | G79: damaging | H79: disease causing | I79: ✽ | J79: Yes | K79: likely pathogenic | L79: predicted pathogenic | M79: ClinVar

Sheet SALL1 calculations
A1: ClinVar | B1: +ve | C1: -ve | G1: LOVD | H1: +ve | I1: -ve | M1: HGMD | N1: +ve | O1: -ve | S1: allele count >30 | T1: +ve | U1: -ve
A2: +ve | B2: 1 | C2: 4 | D2: =SUM(B2:C2) -> 5 | G2: +ve | H2: 0 | I2: 2 | J2: =SUM(H2:I2) -> 2 | M2: +ve | O2: 0 | P2: =SUM(N2:O2) -> 0 | S2: +ve | V2: =SUM(T2:U2) -> 0
A3: -ve | B3: 1 | C3: 16 | D3: =SUM(B3:C3) -> 17 | G3: -ve | H3: 1 | J3: =SUM(H3:I3) -> 1 | M3: -ve | N3: 1 | O3: 0 | P3: =SUM(N3:O3) -> 1 | S3: -ve | U3: 22 | V3: =SUM(T3:U3) -> 22
A4: total | B4: 2 | C4: 20 | D4: 22 | G4: total | H4: 1 | I4: 2 | J4: 3 | M4: total | N4: =SUM(N2:N3) -> 1 | O4: 0 | P4: 1 | S4: total | T4: =SUM(T2:T3) -> 0 | U4: =SUM(U2:U3) -> 22 | V4: 22
B6: sensitivity | C6: =B2/B4*100 -> 50 | H6: sensitivity | I6: =H2/H4*100 -> 0 | N6: sensitivity | O6: =N2/N4*100 -> 0 | T6: sensitivity | U6: =T2/T4*100 -> 
B7: specificity | C7: =C3/C4*100 -> 80 | H7: specificity | I7: =I3/I4*100 -> 0 | N7: specificity | O7: =O3/O4*100 ->  | T7: specificity | U7: =U3/U4*100 -> 100
B8: PPV | C8: =B2/D2*100 -> 20 | H8: PPV | I8: =H2/J2*100 -> 0 | N8: PPV | O8: =N2/P2*100 ->  | T8: PPV | U8: =T2/V2*100 -> 
B9: NPV | C9: =C3/D3*100 -> 94 | H9: NPV | I9: =I3/J3*100 -> 0 | N9: NPV | O9: =O3/P3*100 -> 0 | T9: NPV | U9: =U3/V3*100 -> 100
J12: All | K12: +ve | L12: -ve
J13: +ve | K13: =SUM(B2,H2,N2,T2) -> 1 | L13: 6 | M13: =SUM(K13:L13) -> 7
J14: -ve | K14: 3 | L14: 38 | M14: =SUM(K14:L14) -> 41
J15: total | K15: 4 | L15: 44 | M15: 48
K17: sensitivity | L17: =K13/K15*100 -> 25
K18: specificity | L18: =L14/L15*100 -> 86
K19: PPV | L19: =K13/M13*100 -> 14
K20: NPV | L20: =L14/M14*100 -> 93
A23: BENIGN VARIANTS
A24: Gene | B24: c.DNA | C24: p.change | D24: PP2 SCORE | E24: PP2 PREDICTION | F24: SIFT4G SCORE (VARSOME) | G24: SIFT4G PREDICTION (VARSOME) | H24: MT | I24: Conservation | J24: Conservation conclusion | K24: Database classification | L24: OUR CONCLUSION | M24: DATABASE
A25: SALL1 | B25: c.1135G>T | C25: (p.Ala379Ser) | D25: 0.799 | E25: possibly damaging | F25: 0.06, 0.054, 0.057 | G25: tolerated | H25: disease causing | I25: ✽ | J25: Yes | K25: likely benign | L25: predicted benign | M25: ClinVar
A26: SALL1 | B26: c.1199C>T | C26: (p.Ser400Leu) | D26: 0.031 | E26: benign | F26: 0.084, 0.129, 0.051 | G26: tolerated | H26: disease causing | J26: No | K26: likely benign | L26: predicted benign | M26: ClinVar
A27: SALL1 | B27: c.1322C>A | C27: p.Thr441Asn | D27: 0.001 | E27: B | F27: 0.21 | G27: T | H27: D | J27: No | K27: presumed benign | L27: predicted benign | M27: gnomAD allele count >30
A28: SALL1 | B28: c.1327G>A | C28: (p.Asp443Asn) | D28: 0.956 | E28: possibly damaging | F28: 0.006, 0.007, 0.005 | G28: damaging | H28: disease causing | I28: ✽ | J28: Yes | K28: benign | L28: predicted pathogenic | M28: ClinVar
A29: SALL1 | B29: c.1565C>T | C29: p.Thr522Met | D29: 0.997 | E29: D | F29: 0.001 | G29: D | H29: D | I29: ✽ | J29: Yes | K29: presumed benign | L29: predicted benign | M29: gnomAD allele count >30
A30: SALL1 | B30: c.1565C>T | C30: (p.Thr522Met) | D30: 1 | E30: probaby damaging | F30: 0.001 | G30: damaging | H30: disease causing | I30: ✽ | J30: Yes | K30: benign/likely benign | L30: predicted pathogenic | M30: ClinVar
A31: SALL1 | B31: c.1878G>C | C31: p.Glu626Asp | D31: 0 | E31: B | F31: 0.268 | G31: T | H31: D | I31: ✽ | J31: Yes | K31: presumed benign | L31: predicted benign | M31: gnomAD allele count >30
A32: SALL1 | B32: c.1878G>C | C32: (p.Glu626Asp) | D32: 0 | E32: benign | F32: 0.548, 0.577, 0.602 | G32: tolerated | H32: polymorphism | I32: ✽ | J32: Yes | K32: benign/likely benign | L32: predicted benign | M32: ClinVar
A33: SALL1 | B33: c.1903C>T | C33: p.Pro635Ser | D33: 0 | E33: B | F33: 0.649 | G33: T | H33: N | J33: No | K33: presumed benign | L33: predicted benign | M33: gnomAD allele count >30
A34: SALL1 | B34: c.1903C>T | C34: (p.Pro635Ser) | D34: 0 | E34: benign | F34: 0.516, 0.585, 0.528 | G34: tolerated | H34: polymorphism | J34: No | K34: benign/likely benign | L34: predicted benign | M34: ClinVar
A35: SALL1 | B35: c.1904C>T | C35: p.Pro635Leu | D35: 0 | E35: B | F35: 0.127 | G35: T | H35: D | J35: No | K35: presumed benign | L35: predicted benign | M35: gnomAD allele count >30
A36: SALL1 | B36: c.1904C>T | C36: (p.Pro635Leu) | D36: 0 | E36: benign | F36: 0.036, 0.033, 0.037 | G36: tolerated | H36: polymorphism | J36: No | K36: benign/likely benign | L36: predicted benign | M36: ClinVar
A37: SALL1 | B37: c.1966A>G | C37: p.Thr656Ala | D37: 0 | E37: benign | F37: 0.102, 0.089, 0.12 | G37: tolerated | H37: polymorphism | J37: No | K37: likely benign | L37: predicted benign | M37: LOVD
A38: SALL1 | B38: c.2008T>C | C38: p.Phe670Leu | D38: 0.314 | E38: B | F38: 0.233 | G38: T | H38: D | I38: ✽ | J38: Yes | K38: presumed benign | L38: predicted benign | M38: gnomAD allele count >30
A39: SALL1 | B39: c.2008T>C | C39: (p.Phe670Leu) | D39: 0.894 | E39: possibly damaging | F39: 0.081, 0.086, 0.091 | G39: tolerated | H39: disease causing | I39: ✽ | J39: Yes | K39: benign | L39: predicted benign | M39: ClinVar
A40: SALL1 | B40: c.2105C>T | C40: (p.Ala702Val) | D40: 0.354 | E40: benign | F40: 0.464, 0.525, 0.532 | G40: tolerated | H40: disease causing | I40: ✽ | J40: Yes | K40: likely benign | L40: predicted benign | M40: ClinVar
A41: SALL1 | B41: c.220G>A | C41: p.Val74Ile | D41: 0.007 | E41: B | F41: 0.093 | G41: T | H41: D | I41: ✽ | J41: Yes | K41: presumed benign | L41: predicted benign | M41: gnomAD allele count >30
A42: SALL1 | B42: c.235G>C | C42: p.Ala79Pro | D42: 0.001 | E42: B | F42: 0.146 | G42: T | H42: N | I42: ✽ | J42: Yes | K42: presumed benign | L42: predicted benign | M42: gnomAD allele count >30
A43: SALL1 | B43: c.2870C>G | C43: (p.Ala957Gly) | D43: 0.19 | E43: benign | F43: 0.373, 0.378, 0.243 | G43: tolerated | H43: disease causing | I43: ✽ | J43: Yes | K43: likely benign | L43: predicted benign | M43: ClinVar
A44: SALL1 | B44: c.292A>G | C44: p.Met98Val | D44: 0 | E44: benign | F44: 0.571, 0.012 | G44: tolerated, damaging | H44: disease causing | I44: ✽ | J44: Yes | K44: benign | L44: predicted benign | M44: LOVD
A45: SALL1 | B45: c.3242T>C | C45: (p.Leu1081Ser) | D45: 0.988 | E45: probaby damaging | F45: 0.119, 0.084 | G45: tolerated | H45: disease causing | I45: ✽ | J45: Yes | K45: likely benign | L45: predicted benign | M45: ClinVar
A46: SALL1 | B46: c.3310C>G | C46: p.Pro1104Ala | D46: 0.018 | E46: B | F46: 0.328 | G46: T | H46: D | I46: ✽ | J46: Yes | K46: presumed benign | L46: predicted benign | M46: gnomAD allele count >30
A47: SALL1 | B47: c.3310C>G | C47: (p.Pro1104Ala) | D47: 0.026 | E47: benign | F47: 0.073, 0.071, 0.07 | G47: tolerated | H47: disease causing | I47: ✽ | J47: Yes | K47: benign/likely benign | L47: predicted benign | M47: ClinVar
A48: SALL1 | B48: c.3322G>A | C48: (p.Val1108Ile) | D48: 0.001 | E48: benign | F48: 0.231, 0.146, 0.149 | G48: tolerated | H48: polymorphism | J48: No | K48: likely benign | L48: predicted benign | M48: ClinVar
A49: SALL1 | B49: c.3322G>C | C49: p.Val1108Leu | D49: 0.001 | E49: B | F49: 0.464 | G49: T | H49: D | J49: No | K49: presumed benign | L49: predicted benign | M49: gnomAD allele count >30
A50: SALL1 | B50: c.3322G>C | C50: (p.Val1108Leu) | D50: 0 | E50: benign | F50: 0.236, 0.23, 0.323 | G50: tolerated | H50: polymorphism | J50: No | K50: benign/likely benign | L50: predicted benign | M50: ClinVar
A51: SALL1 | B51: c.3380C>T | C51: (p.Pro1127Leu) | D51: 0.165 | E51: benign | F51: 0.057, 0.056, 0.067 | G51: tolerated | H51: disease causing | I51: ✽ | J51: Yes | K51: benign/likely benign | L51: predicted benign | M51: ClinVar
A52: SALL1 | B52: c.3665C>T | C52: (p.Ala1222Val) | D52: 0.976 | E52: probaby damaging | F52: 0.325, 0.339, 0.341 | G52: tolerated | H52: disease causing | I52: ✽ | J52: Yes | K52: benign/likely benign | L52: predicted benign | M52: ClinVar
A53: SALL1 | B53: c.3794G>A | C53: p.Gly1265Glu | D53: 0.873 | E53: P | F53: 0.096 | G53: T | H53: D | I53: ✽ | J53: Yes | K53: presumed benign | L53: predicted benign | M53: gnomAD allele count >30
A54: SALL1 | B54: c.3794G>A | C54: (p.Gly1265Glu) | D54: 0.998 | E54: probaby damaging | F54: 0.015 | G54: damaging | H54: disease causing | I54: ✽ | J54: Yes | K54: benign/likely benign | L54: predicted pathogenic | M54: ClinVar
A55: SALL1 | B55: c.379G>C | C55: p.Val127Leu | D55: 0.001 | E55: B | F55: 0.497 | G55: T | H55: D | I55: ✽ | J55: Yes | K55: presumed benign | L55: predicted benign | M55: gnomAD allele count >30
A56: SALL1 | B56: c.3823G>A | C56: p.Val1275Ile | D56: 0 | E56: B | F56: 0.482 | G56: T | H56: P | J56: No | K56: presumed benign | L56: predicted benign | M56: gnomAD allele count >30
A57: SALL1 | B57: c.3823G>A | C57: (p.Val1275Ile) | D57: 0 | E57: benign | F57: 0.841, 0.902 | G57: tolerated | H57: polymorphism | J57: No | K57: benign | L57: predicted benign | M57: ClinVar
A58: SALL1 | B58: c.3872A>G | C58: p.Asn1291Ser | D58: 0.001 | E58: B | F58: 0.697 | G58: T | H58: D | J58: No | K58: presumed benign | L58: predicted benign | M58: gnomAD allele count >30
A59: SALL1 | B59: c.3872A>G | C59: (p.Asn1291Ser) | D59: 0 | E59: benign | F59: 1 | G59: tolerated | H59: polymorphism | J59: No | K59: benign/likely benign | L59: predicted benign | M59: ClinVar
A60: SALL1 | B60: c.389C>T | C60: p.Pro130Leu | D60: 0.001 | E60: B | F60: 0.021 | G60: D | H60: D | J60: No | K60: presumed benign | L60: predicted benign | M60: gnomAD allele count >30
A61: SALL1 | B61: c.3963C>G | C61: (p.Ile1321Met) | D61: 0.997 | E61: probaby damaging | F61: 0.005, 0.011 | G61: damaging | H61: disease causing | I61: ✽ | J61: Yes | K61: benign | L61: predicted pathogenic | M61: ClinVar
A62: SALL1 | B62: c.472A>G | C62: p.Ser158Gly | D62: 0.007 | E62: B | F62: 0.445 | G62: T | H62: N | J62: No | K62: presumed benign | L62: predicted benign | M62: gnomAD allele count >30
A63: SALL1 | B63: c.475A>G | C63: p.Ser159Gly | D63: 0.015 | E63: B | F63: 0.449 | G63: T | H63: N | J63: No | K63: presumed benign | L63: predicted benign | M63: gnomAD allele count >30
A64: SALL1 | B64: c.477C>A | C64: p.Ser159Arg | D64: 0.162 | E64: B | F64: 0.405 | G64: T | H64: N | J64: No | K64: presumed benign | L64: predicted benign | M64: gnomAD allele count >30
A65: SALL1 | B65: c.478G>A | C65: p.Gly160Ser | D65: 0 | E65: B | F65: 0.746 | G65: T | H65: N | J65: No | K65: presumed benign | L65: predicted benign | M65: gnomAD allele count >30
A66: SALL1 | B66: c.499A>G | C66: p.Thr167Ala | D66: 0 | E66: B | F66: 0.733 | G66: T | H66: D | J66: No | K66: presumed benign | L66: predicted benign | M66: gnomAD allele count >30
A67: SALL1 | B67: c.676G>A | C67: p.Val226Ile | D67: 0.001 | E67: B | F67: 1 | G67: T | H67: D | J67: No | K67: presumed benign | L67: predicted benign | M67: gnomAD allele count >30
A68: SALL1 | B68: c.809C>T | C68: p.Pro270Leu | D68: 0.01 | E68: B | F68: 0.322 | G68: T | H68: D | I68: ✽ | J68: Yes | K68: presumed benign | L68: predicted benign | M68: gnomAD allele count >30
A71: PATHOGENIC VARIANTS
A72: Gene | B72: c.DNA | C72: p.change | D72: PP2 SCORE | E72: PP2 PREDICTION | F72: SIFT4G SCORE (VARSOME) | G72: SIFT4G PREDICTION (VARSOME) | H72: MT | I72: Conservation | J72: Conservation conclusion | K72: Database classification | L72: OUR CONCLUSION | M72: DATABASE
A73: SALL1 | B73: c.1513C>A | C73: p.His505Asn | D73: 0.997 | E73: probably damaging | F73: 0.098, 0.137, 0.101 | G73: tolerated | H73: disease causing | I73: ✽ | J73: Yes | K73: pathogenic | L73: predicted benign | M73: LOVD
A74: SALL1 | B74: c.1666G>A | C74: (p.Gly556Ser) | D74: 1 | E74: probaby damaging | F74: 0.036, 0.021, 0.005 | G74: damaging | H74: disease causing | I74: ✽ | J74: Yes | K74: likely pathogenic | L74: predicted pathogenic | M74: ClinVar
A75: SALL1 | B75: c.3326C>T | C75: (p.Pro1109Leu) | D75: 0.023 | E75: benign | F75: 0.006, 0.004 | G75: damaging | H75: disease causing | J75: No | K75: likely pathogenic | L75: predicted benign | M75: ClinVar
A76: SALL1 | B76: c.548C>G | C76: p.Thr183Arg | D76: 0.664 | E76: possibly damaging | F76: 0.015, 0.07 | G76: damaging, tolerated | H76: disease causing | I76: ✽ | J76: Yes | K76: DM | L76: predicted benign | M76: HGMD

Sheet HNF1B calculations
A1: ClinVar | B1: +ve | C1: -ve | G1: LOVD | H1: +ve | I1: -ve | M1: HGMD | N1: +ve | O1: -ve | S1: allele count >30 | T1: +ve | U1: -ve
A2: +ve | B2: 18 | C2: 0 | D2: =SUM(B2:C2) -> 18 | G2: +ve | H2: 12 | J2: =SUM(H2:I2) -> 12 | M2: +ve | N2: 15 | O2: 0 | P2: =SUM(N2:O2) -> 15 | S2: +ve | V2: =SUM(T2:U2) -> 0
A3: -ve | B3: 2 | C3: 4 | D3: =SUM(B3:C3) -> 6 | G3: -ve | H3: 1 | J3: =SUM(H3:I3) -> 1 | M3: -ve | N3: 0 | O3: 0 | P3: =SUM(N3:O3) -> 0 | S3: -ve | U3: 14 | V3: =SUM(T3:U3) -> 14
A4: total | B4: =SUM(B2:B3) -> 20 | C4: =SUM(C2:C3) -> 4 | D4: 24 | G4: total | H4: =SUM(H2:H3) -> 13 | I4: =SUM(I2:I3) -> 0 | J4: 13 | M4: total | N4: =SUM(N2:N3) -> 15 | O4: =SUM(O2:O3) -> 0 | P4: 15 | S4: total | T4: =SUM(T2:T3) -> 0 | U4: =SUM(U2:U3) -> 14 | V4: 14
B6: sensitivity | C6: =B2/B4*100 -> 90 | H6: sensitivity | I6: =H2/H4*100 -> 92 | N6: sensitivity | O6: =N2/N4*100 -> 100 | T6: sensitivity | U6: =T2/T4*100 -> 
B7: specificity | C7: =C3/C4*100 -> 100 | H7: specificity | I7: =I3/I4*100 ->  | N7: specificity | O7: =O3/O4*100 ->  | T7: specificity | U7: =U3/U4*100 -> 100
B8: PPV | C8: =B2/D2*100 -> 100 | H8: PPV | I8: =H2/J2*100 -> 100 | N8: PPV | O8: =N2/P2*100 -> 100 | T8: PPV | U8: =T2/V2*100 -> 
B9: NPV | C9: =C3/D3*100 -> 67 | H9: NPV | I9: =I3/J3*100 -> 0 | N9: NPV | O9: =O3/P3*100 ->  | T9: NPV | U9: =U3/V3*100 -> 100
J12: All | K12: +ve | L12: -ve
J13: +ve | K13: =SUM(B2,H2,N2,T2) -> 45 | L13: 0 | M13: =SUM(K13:L13) -> 45
J14: -ve | K14: 3 | L14: 18 | M14: =SUM(K14:L14) -> 21
J15: total | K15: 48 | L15: 18 | M15: 66
K17: sensitivity | L17: =K13/K15*100 -> 94
K18: specificity | L18: =L14/L15*100 -> 100
K19: PPV | L19: =K13/M13*100 -> 100
K20: NPV | L20: =L14/M14*100 -> 86
A23: BENIGN VARIANTS
A24: Gene | B24: c.DNA | C24: p.change | D24: PP2 SCORE | E24: PP2 PREDICTION | F24: SIFT4G SCORE (VARSOME) | G24: SIFT4G PREDICTION (VARSOME) | H24: MT | I24: Conservation | J24: Conservation conclusion | K24: Database classification | L24: OUR CONCLUSION | M24: DATABASE
A25: HNF1B | B25: c.1006C>A | C25: (p.His336Asn) | D25: 0.425 | E25: benign | F25: 0.441, 0.458, 0.423, 0.46, 0.443 | G25: tolerated | H25: disease causing | I25: ✽ | J25: yes | K25: benign | L25: predicted benign | M25: ClinVar
A26: HNF1B | B26: c.1006C>G | C26: p.His336Asp | D26: 0.182 | E26: B | F26: 0.575 | G26: T | H26: D | I26: ✽ | J26: yes | K26: presumed benign | L26: predicted benign | M26: gnomAD allele count >30
A27: HNF1B | B27: c.107C>T | C27: p.Ser36Phe | D27: 0.452 | E27: P | F27: 0.134 | G27: T | H27: N | J27: no, but similar | K27: presumed benign | L27: predicted benign | M27: gnomAD allele count >30
A28: HNF1B | B28: c.1108G>A | C28: p.Gly370Ser | D28: 0.119 | E28: B | F28: 1 | G28: T | H28: D | I28: ✽ | J28: yes | K28: presumed benign | L28: predicted benign | M28: gnomAD allele count >30
A29: HNF1B | B29: c.1117G>C | C29: p.Ala373Pro | D29: 0.982 | E29: D | F29: 0.254 | G29: T | H29: D | I29: ✽ | J29: yes | K29: presumed benign | L29: predicted benign | M29: gnomAD allele count >30
A30: HNF1B | B30: c.1120A>C | C30: p.Met374Leu | D30: 0.945 | E30: D | F30: 0.445 | G30: T | H30: D | I30: ✽ | J30: yes | K30: presumed benign | L30: predicted benign | M30: gnomAD allele count >30
A31: HNF1B | B31: c.1329T>G | C31: p.Phe443Leu | D31: can't find | F31: 0.644 | G31: T | H31: D | I31: not found | J31: not found | M31: gnomAD allele count >30
A32: HNF1B | B32: c.1474G>A | C32: p.Gly492Ser | D32: 0.029 | E32: B | F32: 0.122 | G32: T | H32: D | J32: no | K32: presumed benign | L32: predicted benign | M32: gnomAD allele count >30
A33: HNF1B | B33: c.1474G>A | C33: (p.Gly492Ser) | D33: 0.014 | E33: benign | F33: 0.084, 0.131, 0.122 | G33: tolerated | H33: disease causing | J33: no | K33: benign/likely benign | L33: predicted benign | M33: ClinVar
A34: HNF1B | B34: c.1594A>G | C34: p.Met532Val | D34: 0.977 | E34: D | F34: 0.062 | G34: T | H34: D | I34: ✽ | J34: yes | K34: presumed benign | L34: predicted benign | M34: gnomAD allele count >30 | Q34: 16/17
A35: HNF1B | B35: c.182T>G | C35: p.Val61Gly | D35: 0.005 | E35: B | F35: 0.32 | G35: T | H35: D | J35: no | K35: presumed benign | L35: predicted benign | M35: gnomAD allele count >30
A36: HNF1B | B36: c.226G>T | C36: p.Gly76Cys | D36: 1 | E36: D | F36: 0.009 | G36: D | H36: D | I36: ✽ | J36: yes | K36: presumed benign | L36: Predicted Pathogenic | M36: gnomAD allele count >30
A37: HNF1B | B37: c.244G>A | C37: p.Asp82Asn | D37: 0.528 | E37: P | F37: 0.015 | G37: D | H37: D | I37: ✽ | J37: yes | K37: presumed benign | L37: predicted benign | M37: gnomAD allele count >30
A38: HNF1B | B38: c.313G>A | C38: p.Glu105Lys | D38: 0.996 | E38: D | F38: 0.6 | G38: T | H38: D | I38: ✽ | J38: yes | K38: presumed benign | L38: predicted benign | M38: gnomAD allele count >30
A39: HNF1B | B39: c.684C>G | C39: p.Asn228Lys | D39: 0.001 | E39: B | F39: 0.509 | G39: T | H39: D | J39: no | K39: presumed benign | L39: predicted benign | M39: gnomAD allele count >30
A40: HNF1B | B40: c.684C>G | C40: (p.Asn228Lys) | D40: 0 | E40: benign | F40: 0.502, 0.517, 0.621, 0.547, 0.371, 0.509 | G40: tolerated | H40: disease causing | I40: . | J40: no | K40: benign/likely benign | L40: predicted benign | M40: ClinVar
A41: HNF1B | B41: c.73G>T | C41: p.Val25Leu | D41: 0.224 | E41: B | F41: 0.328 | G41: T | H41: D | J41: no | K41: presumed benign | L41: predicted benign | M41: gnomAD allele count >30
A42: HNF1B | B42: c.983C>T | C42: (p.Pro328Leu) | D42: 0 | E42: benign | F42: 0.132, 0.135, 0.143, 0.151, 0.138 | G42: tolerated | H42: disease causing | J42: no | K42: likely benign | L42: predicted benign | M42: ClinVar
A45: PATHOGENIC VARIANTS
A46: Gene | B46: c.DNA | C46: p.change | D46: PP2 SCORE | E46: PP2 PREDICTION | F46: SIFT4G SCORE (VARSOME) | G46: SIFT4G PREDICTION (VARSOME) | H46: MT | I46: Conservation | J46: Conservation conclusion | K46: Database classification | L46: OUR CONCLUSION | M46: DATABASE
A47: HNF1B | B47: c.1055A>G | C47: (p.Tyr352Cys) | D47: 0.997 | E47: probably damaging | F47: 0, 0.004, 0.002, 0.006, 0.005 | G47: damaging | H47: disease causing | I47: ✽ | J47: yes | K47: likely pathogenic | L47: predicted pathogenic | M47: ClinVar
A48: HNF1B | B48: c.1640C>T | C48: (p.Ser547Phe) | D48: 0.997 | E48: probably damaging | F48: 0.002 | G48: damaging | H48: disease causing | I48: ✽ | J48: yes | K48: likely pathogenic | L48: predicted pathogenic | M48: ClinVar
A49: HNF1B | B49: c.234G>C | C49: p.Glu78Asp | D49: 0.997 | E49: probably damaging | F49: 0.03, 0.028, 0.029, 0.024 | G49: damaging | H49: disease causing | I49: ✽ | J49: yes | K49: likely pathogenic | L49: predicted pathogenic | M49: LOVD
A50: HNF1B | B50: c.329T>G | C50: p.Val110Gly | D50: 0.972 | E50: probably damaging | F50: 0, 0, 0, 0, 0, 0 | G50: damaging, damaging, damaging, damaging, damaging, damaging | H50: disease causing | I50: ✽ | J50: yes | K50: DM | L50: predicted pathogenic | M50: HGMD
A51: HNF1B | B51: c.374T>C | C51: p.Ile125Thr | D51: 0.998 | E51: probably damaging | F51: 0.002, 0.002, 0.002, 0.003, 0.003, 0.003 | G51: damaging, damaging, damaging, damaging, damaging, damaging | H51: disease causing | I51: ✽ | J51: yes | K51: DM | L51: predicted pathogenic | M51: HGMD
A52: HNF1B | B52: c.406C>G | C52: p.Gln136Glu | D52: 0.996 | E52: probably damaging | F52: 0, 0, 0, 0, 0, 0 | G52: damaging, damaging, damaging, damaging, damaging, damaging | H52: disease causing | I52: ✽ | J52: yes | K52: DM | L52: predicted pathogenic | M52: HGMD
A53: HNF1B | B53: c.412G>A | C53: p.Glu138Lys | D53: 0.997 | E53: probably damaging | F53: 0, 0, 0, 0, 0, 0 | G53: damaging, damaging, damaging, damaging, damaging, damaging | H53: disease causing | I53: ✽ | J53: yes | K53: DM | L53: predicted pathogenic | M53: HGMD
A54: HNF1B | B54: c.436A>G | C54: p.Asn146Asp | D54: 0.999 | E54: probably damaging | F54: 0, 0, 0, 0, 0, 0 | G54: damaging, damaging, damaging, damaging, damaging, damaging | H54: disease causing | I54: ✽ | J54: yes | K54: DM | L54: predicted pathogenic | M54: HGMD
A55: HNF1B | B55: c.441G>T | C55: p.Gln147His | D55: 0.998 | E55: probably damaging | F55: 0, 0, 0, 0, 0, 0 | G55: damaging, damaging, damaging, damaging, damaging, damaging | H55: disease causing | I55: ✽ | J55: yes | K55: DM | L55: predicted pathogenic | M55: HGMD
A56: HNF1B | B56: c.443C>G | C56: p.Ser148Trp | D56: 1 | E56: probably damaging | F56: 0, 0, 0, 0, 0, 0 | G56: damaging, damaging, damaging, damaging, damaging, damaging | H56: disease causing | I56: ✽ | J56: yes | K56: DM | L56: predicted pathogenic | M56: HGMD
A57: HNF1B | B57: c.443C>T | C57: p.Ser148Leu | D57: 0.999 | E57: probably damaging | F57: 0, 0, 0, 0, 0, 0 | G57: damaging, damaging, damaging, damaging, damaging, damaging | H57: disease causing | I57: ✽ | J57: yes | K57: DM | L57: predicted pathogenic | M57: HGMD
A58: HNF1B | B58: c.451T>C | C58: p.Ser151Pro | D58: 0.998 | E58: probably damaging | F58: 0, 0, 0, 0, 0, 0 | G58: damaging, damaging, damaging, damaging, damaging, damaging | H58: disease causing | I58: ✽ | J58: yes | K58: DM | L58: predicted pathogenic | M58: HGMD
A59: HNF1B | B59: c.452C>G | C59: p.Ser151Cys | D59: 0.998 | E59: probably damaging | F59: 0, 0, 0, 0, 0, 0 | G59: damaging, damaging, damaging, damaging, damaging, damaging | H59: disease causing | I59: ✽ | J59: yes | K59: DM | L59: predicted pathogenic | M59: HGMD
A60: HNF1B | B60: c.455A>G | C60: p.Gln152Arg | D60: 0.993 | E60: probably damaging | F60: 0, 0, 0, 0, 0, 0 | G60: damaging, damaging, damaging, damaging, damaging, damaging | H60: disease causing | I60: ✽ | J60: yes | K60: DM | L60: predicted pathogenic | M60: HGMD
A61: HNF1B | B61: c.457C>A | C61: p.His153Asn | D61: 1 | E61: probably damaging | F61: 0 | G61: damaging | H61: disease causing | I61: ✽ | J61: yes | K61: pathogenic | L61: predicted pathogenic | M61: LOVD
A62: HNF1B | B62: c.460C>T | C62: p.Leu154Phe | D62: 0.999 | E62: probably damaging | F62: 0, 0, 0, 0, 0, 0 | G62: damaging, damaging, damaging, damaging, damaging, damaging | H62: disease causing | I62: ✽ | J62: yes | K62: DM | L62: predicted pathogenic | M62: HGMD
A63: HNF1B | B63: c.466A>G | C63: p.Lys156Glu | D63: 1 | E63: probably damaging | F63: 0.002, 0.003 | G63: damaging | H63: disease causing | I63: ✽ | J63: yes | K63: pathogenic | L63: predicted pathogenic | M63: LOVD
A64: HNF1B | B64: c.473C>A | C64: p.Thr158Asn | D64: 1 | E64: probably damaging | F64: 0, 0, 0, 0, 0, 0 | G64: damaging, damaging, damaging, damaging, damaging, damaging | H64: disease causing | I64: ✽ | J64: yes | K64: DM | L64: predicted pathogenic | M64: HGMD
A65: HNF1B | B65: c.476C>T | C65: p.Pro159Leu | D65: 1 | E65: probably damaging | F65: 0.001, 0.001, 0.001, 0.001, 0.002, 0.002 | G65: damaging, damaging, damaging, damaging, damaging, damaging | H65: disease causing | I65: ✽ | J65: yes | K65: DM | L65: predicted pathogenic | M65: HGMD
A66: HNF1B | B66: c.478A>G | C66: p.Met160Val | D66: 0.999 | E66: probably damaging | F66: 0, 0, 0, 0, 0, 0 | G66: damaging, damaging, damaging, damaging, damaging, damaging | H66: disease causing | I66: ✽ | J66: yes | K66: DM | L66: predicted pathogenic | M66: HGMD
A67: HNF1B | B67: c.493C>T | C67: p.Arg165Cys | D67: 1 | E67: probably damaging | F67: 0 | G67: damaging | H67: disease causing | I67: ✽ | J67: yes | K67: pathogenic | L67: predicted pathogenic | M67: LOVD
A68: HNF1B | B68: c.494G>C | C68: p.Arg165Pro | D68: 1 | E68: probably damaging | F68: 0 | G68: damaging | H68: disease causing | I68: ✽ | J68: yes | K68: likely pathogenic, pathogenic | L68: predicted pathogenic | M68: LOVD
A69: HNF1B | B69: c.505T>C | C69: p.Tyr169His | D69: 1 | E69: probably damaging | F69: 0, 0, 0, 0, 0, 0 | G69: damaging, damaging, damaging, damaging, damaging, damaging | H69: disease causing | I69: ✽ | J69: yes | K69: pathogenic | L69: predicted pathogenic | M69: LOVD
A70: HNF1B | B70: c.511T>C | C70: p.Trp171Arg | D70: 1 | E70: probably damaging | F70: 0, 0, 0, 0, 0, 0 | G70: damaging, damaging, damaging, damaging, damaging, damaging | H70: disease causing | I70: ✽ | J70: yes | K70: likely pathogenic, pathogenic | L70: predicted pathogenic | M70: LOVD
A71: HNF1B | B71: c.513G>C | C71: p.Trp171Cys | D71: 1 | E71: probably damaging | F71: 0 | G71: damaging | H71: disease causing | I71: ✽ | J71: yes | K71: likely pathogenic | L71: predicted pathogenic | M71: LOVD
A72: HNF1B | B72: c.548T>C | C72: p.Phe183Ser | D72: 0.635 | E72: possibly damaging | F72: 0.015, 0.013, 0.021 | G72: damaging, damaging, damaging | H72: disease causing | I72: ✽ | J72: yes | K72: pathogenic | L72: predicted benign | M72: LOVD
A73: HNF1B | B73: c.698G>A | C73: p.Arg233His | D73: 0.999 | E73: probably damaging | F73: 0.003, 0.006, 0.004 | G73: damaging | H73: disease causing | I73: ✽ | J73: yes | K73: likely pathogenic | L73: predicted pathogenic | M73: LOVD
A74: HNF1B | B74: c.703C>T | C74: p.Arg235Trp | D74: 1 | E74: probably damaging | F74: 0.001, 0 | G74: damaging | H74: disease causing | I74: ✽ | J74: yes | K74: likely pathogenic | L74: predicted pathogenic | M74: LOVD
A75: HNF1B | B75: c.712T>C | C75: (p.Trp238Arg) | D75: 0.982 | E75: probably damaging | F75: 0.006, 0.005, 0.006, 0.006, 0.007, 0.006 | G75: damaging, damaging, damaging, damaging, damaging, damaging | H75: disease causing | I75: ✽ | J75: yes | K75: likely pathogenic | L75: predicted pathogenic | M75: ClinVar | O75: Bottom 23
A76: HNF1B | B76: c.715G>C | C76: (p.Gly239Arg) | D76: 0.966 | E76: probably damaging | F76: 0.002, 0.002, 0.001, 0.001, 0.002, 0.001 | G76: damaging, damaging, damaging, damaging, damaging, damaging | H76: disease causing | I76: ✽ | J76: yes | K76: pathogenic | L76: predicted pathogenic | M76: ClinVar
A77: HNF1B | B77: c.728A>C | C77: (p.Gln243Pro) | D77: 0.995 | E77: probably damaging | F77: 0.028, 0.026, 0.025, 0.015, 0.025, 0.004 | G77: damaging, damaging, damaging, damaging, damaging, damaging | H77: disease causing | I77: ✽ | J77: yes | K77: likely pathogenic | L77: predicted pathogenic | M77: ClinVar | O77: 19/23
A78: HNF1B | B78: c.755G>C | C78: (p.Arg252Pro) | D78: 0.996 | E78: probably damaging | F78: 0.008, 0.007, 0.007, 0.007, 0.009 | G78: damaging, damaging, damaging, damaging, damaging | H78: disease causing | I78: ✽ | J78: yes | K78: likely pathogenic | L78: predicted pathogenic | M78: ClinVar
A79: HNF1B | B79: c.766C>T | C79: (p.Pro256Ser) | D79: 0.734 | E79: possibly damaging | F79: 0.098 | G79: tolerated | H79: disease causing | I79: ✽ | J79: yes | K79: likely pathogenic | L79: predicted benign | M79: ClinVar
A80: HNF1B | B80: c.781A>G | C80: p.Arg261Gly | D80: 0.99 | E80: probably damaging | F80: 0.002, 0.003, 0.004, 0.005 | G80: damaging | H80: disease causing | I80: ✽ | J80: yes | K80: likely pathogenic | L80: predicted pathogenic | M80: LOVD
A81: HNF1B | B81: c.791T>C | C81: (p.Leu264Ser) | D81: 0.993 | E81: probably damaging | F81: 0.001, 0.001, 0.001, 0.001, 0.001, 0.001 | G81: damaging, damaging, damaging, damaging, damaging, damaging | H81: disease causing | I81: ✽ | J81: yes | K81: likely pathogenic | L81: predicted pathogenic | M81: ClinVar
A82: HNF1B | B82: c.818G>A | C82: (p.Cys273Tyr) | D82: 0.987 | E82: probably damaging | F82: 0.002, 0.002, 0.002, 0, 0.002 | G82: damaging, damaging, damaging, damaging, damaging | H82: disease causing | I82: ✽ | J82: yes | K82: likely pathogenic | L82: predicted pathogenic | M82: ClinVar
A83: HNF1B | B83: c.818G>C | C83: (p.Cys273Ser) | D83: 0.997 | E83: probably damaging | F83: 0.003, 0.003, 0.003, 0.005, 0.004 | G83: damaging, damaging, damaging, damaging, damaging | H83: disease causing | I83: ✽ | J83: yes | K83: likely pathogenic | L83: predicted pathogenic | M83: ClinVar
A84: HNF1B | B84: c.826C>G | C84: (p.Arg276Gly) | D84: 0.994 | E84: probably damaging | F84: 0.003, 0.003, 0.003, 0.004, 0.004 | G84: damaging, damaging, damaging, damaging, damaging | H84: disease causing | I84: ✽ | J84: yes | K84: pathogenic | L84: predicted pathogenic | M84: ClinVar
A85: HNF1B | B85: c.827G>A | C85: (p.Arg276Gln) | D85: 0.773 | E85: possibly damaging | F85: 0.082 | G85: tolerated | H85: disease causing | I85: ✽ | J85: yes | K85: pathogenic | L85: predicted benign | M85: ClinVar
A86: HNF1B | B86: c.853G>A | C86: (p.Gly285Ser) | D86: 0.983 | E86: probably damaging | F86: 0.02, 0.018, 0.019, 0.017, 0.028 | G86: damaging, damaging, damaging, damaging, damaging | H86: disease causing | I86: ✽ | J86: yes | K86: likely pathogenic | L86: predicted pathogenic | M86: ClinVar
A87: HNF1B | B87: c.854G>A | C87: (p.Gly285Asp) | D87: 0.988 | E87: probably damaging | F87: 0.023 | G87: damaging | H87: disease causing | I87: ✽ | J87: yes | K87: pathogenic | L87: predicted pathogenic | M87: ClinVar
A88: HNF1B | B88: c.856C>G | C88: (p.Leu286Val) | D88: 0.997 | E88: probably damaging | F88: 0.005, 0.005, 0.005, 0.005, 0.006 | G88: damaging | H88: disease causing | I88: ✽ | J88: yes | K88: likely pathogenic | L88: predicted pathogenic | M88: ClinVar
A89: HNF1B | B89: c.865A>G | C89: (p.Asn289Asp) | D89: 0.973 | E89: probably damaging | F89: 0.016, 0.021, 0.013, 0.017 | G89: damaging | H89: disease causing | I89: ✽ | J89: yes | K89: pathogenic/likely pathogenic | L89: predicted pathogenic | M89: ClinVar
A90: HNF1B | B90: c.883C>T | C90: (p.Arg295Cys) | D90: 1 | E90: probably damaging | F90: 0.001, 0 | G90: damaging | H90: disease causing | I90: ✽ | J90: yes | K90: pathogenic/likely pathogenic | L90: predicted pathogenic | M90: ClinVar
A91: HNF1B | B91: c.884G>A | C91: p.Arg295His | D91: 1 | E91: probably damaging | F91: 0.002, 0.005, 0.003 | G91: damaging | H91: disease causing | I91: ✽ | J91: yes | K91: pathogenic | L91: predicted pathogenic | M91: LOVD
A92: HNF1B | B92: c.886G>T | C92: (p.Val296Phe) | D92: 0.951 | E92: possibly damaging | F92: 0.002, 0.001 | G92: damaging | H92: disease causing | I92: ✽ | J92: yes | K92: likely pathogenic | L92: predicted pathogenic | M92: ClinVar
A93: HNF1B | B93: c.910A>G | C93: (p.Arg304Gly) | D93: 1 | E93: probably damaging | F93: 0.007, 0.008 | G93: damaging | H93: disease causing | I93: ✽ | J93: yes | K93: likely pathogenic/likely risk allele | L93: predicted pathogenic | M93: ClinVar
A94: HNF1B | B94: c.940G>A | C94: (p.Ala314Thr) | D94: 0.997 | E94: probably damaging | F94: 0.007, 0.008, 0.011, 0.012 | G94: damaging | H94: disease causing | I94: ✽ | J94: yes | K94: likely pathogenic | L94: predicted pathogenic | M94: ClinVar
